{"text_format":"1","workbook":"xlsx","n_sheets":7,"sheets":["VersionLog","Resources","BuildingView","MotorControllers","WCCTemplate","PICS","DefaultBnObjects"],"not_rendered":{"charts":0,"images":16,"macros":1,"external_links":0,"defined_names":8,"comments":0,"pivot_tables":0},"unopened":[],"bounds":{"document_bytes":16777216,"sheet_cells":100000,"rows_first":2000,"rows_last":500,"rows_between":2000,"halvings":0,"cell_chars":16384,"cell_head_chars":4096},"cells_cut":0,"cells_raw":0,"read":"whole","date_system":"1900"}

{"sheet":"VersionLog","index":0,"n_rows":13,"n_cols":4,"rows_kept":13,"cut":false,"hidden":true,"merged":[]}
[]
["Filname","Date","Initials","Version Description"]
[null,"2019-04-04","ASh","First version"]
[null,"2019-06-21","ASh","Zone volume calculation added"]
[null,"2019-08-30","ASh","Hight colon added to Zone volume calculation"]
[null,"2021-03-09","ASh","AOnet colon name changed to AOnet ID"]
[null,"2021-06-18","ASh","Sensor source add in BuildingView. Zone volume calculated in Building view"]
[null,"2021-07-26","ASh","Default BACnet object list generation, Parameter no. added"]
[null,"2021-11-08","ASh","Correted BACnet objects generation for only one WxC "]
[null,"2023-03-02","ASh","Project default CP value, added"]
[null,"2023-07-06","ASh","Windows opening area calculation adjusted. Limited to max Width x Hight "]
[null,"2023-11-13","ASh","Max no. of zones doubled to 144 zones"]
[null,"2024-06-03","ASh","Orienting and Hight above ground added to MG parameters"]

{"sheet":"Resources","index":1,"n_rows":7,"n_cols":3,"rows_kept":7,"cut":false,"hidden":true,"merged":[]}
["MLUsage","Indoor sensor","Weather station"]
["Not used"]
["MotorLink™","WWS 100","WLA 340"]
["+-24Volt","BACnet","WOW 600"]
["Heating valve","KNX","BACnet"]
["Blind","Other","KNX"]
["Screen"]

{"sheet":"BuildingView","index":2,"n_rows":73,"n_cols":17,"rows_kept":73,"cut":false,"hidden":false,"merged":[[2,6,2,7],[0,4,0,5],[1,4,1,5],[2,4,2,5]]}
[null,null,"Version",null,"Project name"]
[null,null,{"$f":"MAX(VersionLog!B3:B100)","v":"2024-06-03"},null,"Leading letters"]
[null,null,null,null,"Project number"]
[]
["Building","Part","Zone no.","Name of zone","NV","Heating","Mech. ventilation","Sun shading","Heat& Smoke","Indoor sensor values source","Special functions","Room width","Room depth","Room height","Volume"]
[1,1,1,"Zone 1",null,null,null,null,null,"WWS 100",null,1,5,3,{"$f":"IF(AND(ISNUMBER(L6), ISNUMBER(M6), ISNUMBER(N6)),L6*M6*N6,\"\")","v":15}]
[1,1,2,"Zone 2",null,null,null,null,null,"WWS 100",null,2,4,3,{"$f":"IF(AND(ISNUMBER(L7), ISNUMBER(M7), ISNUMBER(N7)),L7*M7*N7,\"\")","v":24}]
[1,1,3,"Zone 3",null,null,null,null,null,"WWS 100",null,3,3,3,27]
[1,1,4,"Zone 4",null,null,null,null,null,"WWS 100",null,4,2,3,24,null,"You begin by filling out the ‘BuildingView’ sheet. For each zone you can specify the Building/Part, Zone name and tick the software controllers the zone needs. This data is later automatically copied to the Motor controller sheets."]
[1,1,5,"Zone 5",null,null,null,null,null,"WWS 100",null,5,1,3,15]
[1,1,6,null,null,null,null,null,null,"WWS 100",null,null,null,null,"",null,"Next fill out the ‘MotorControllers’ sheet. As a minimum fill out the ‘Name’ column – for example WCC1, WCC2 .. – and other information if available."]
[1,null,7,null,null,null,null,null,null,"WWS 100",null,null,null,null,"",null,"Then press the ‘Create WxC sheets’ button. The file creates a sheet for each WCC in the list and fills it out with info from the zones and MotorControllers sheets."]
[1,null,8,null,null,null,null,null,null,"WWS 100",null,null,null,null,""]
[1,null,9,null,null,null,null,null,null,"WWS 100",null,null,null,null,"",null,"In a WxC sheet fill out the relevant info for the MotorLines, Motor Groups and the controllers in use. For the NV Controllers fill out the zone (in the building) they control and the file will automatically fill out the Building/Part of the zone."]
[1,null,10,null,null,null,null,null,null,"WWS 100",null,null,null,null,""]
[1,null,11,null,null,null,null,null,null,"WWS 100",null,null,null,null,"",null,"For each WCC there is a CP table. In case CFD is used in the project, this table will be filled out by “Ventilation Institute” as they do for NV Advance™ projects."]
[1,null,12,null,null,null,null,null,null,"WWS 100",null,null,null,null,""]
[1,null,13,null,null,null,null,null,null,"WWS 100",null,null,null,null,""]
[1,null,14,null,null,null,null,null,null,"WWS 100",null,null,null,null,""]
[1,null,15,null,null,null,null,null,null,"WWS 100",null,null,null,null,""]
[1,null,16,null,null,null,null,null,null,"WWS 100",null,null,null,null,""]
[1,null,17,null,null,null,null,null,null,"WWS 100",null,null,null,null,""]
[1,null,18,null,null,null,null,null,null,"WWS 100",null,null,null,null,""]
[1,null,19,null,null,null,null,null,null,"WWS 100",null,null,null,null,""]
[1,null,20,null,null,null,null,null,null,"WWS 100",null,null,null,null,""]
[1,null,21,null,null,null,null,null,null,null,null,null,null,null,""]
[null,null,22,null,null,null,null,null,null,null,null,null,null,null,""]
[null,null,23,null,null,null,null,null,null,null,null,null,null,null,""]
[null,null,24,null,null,null,null,null,null,null,null,null,null,null,""]
[null,null,25,null,null,null,null,null,null,null,null,null,null,null,""]
[null,null,26,null,null,null,null,null,null,null,null,null,null,null,""]
[null,null,27,null,null,null,null,null,null,null,null,null,null,null,""]
[null,null,28,null,null,null,null,null,null,null,null,null,null,null,""]
[null,null,29,null,null,null,null,null,null,null,null,null,null,null,""]
[null,null,30,null,null,null,null,null,null,null,null,null,null,null,""]
[null,null,31,null,null,null,null,null,null,null,null,null,null,null,""]
[null,null,32,null,null,null,null,null,null,null,null,null,null,null,""]
[null,null,33,null,null,null,null,null,null,null,null,null,null,null,""]
[null,null,34,null,null,null,null,null,null,null,null,null,null,null,""]
[null,null,35,null,null,null,null,null,null,null,null,null,null,null,""]
[null,null,36,null,null,null,null,null,null,null,null,null,null,null,""]
[null,null,37,null,null,null,null,null,null,null,null,null,null,null,""]
[null,null,38,null,null,null,null,null,null,null,null,null,null,null,""]
[null,null,39,null,null,null,null,null,null,null,null,null,null,null,""]
[null,null,40,null,null,null,null,null,null,null,null,null,null,null,""]
[null,null,41,null,null,null,null,null,null,null,null,null,null,null,""]
[null,null,null,null,null,null,null,null,null,null,null,null,null,null,""]
[null,null,null,null,null,null,null,null,null,null,null,null,null,null,""]
[null,null,null,null,null,null,null,null,null,null,null,null,null,null,""]
[null,null,null,null,null,null,null,null,null,null,null,null,null,null,""]
[null,null,null,null,null,null,null,null,null,null,null,null,null,null,""]
[null,null,null,null,null,null,null,null,null,null,null,null,null,null,""]
[null,null,null,null,null,null,null,null,null,null,null,null,null,null,""]
[null,null,null,null,null,null,null,null,null,null,null,null,null,null,""]
[null,null,null,null,null,null,null,null,null,null,null,null,null,null,""]
[null,null,null,null,null,null,null,null,null,null,null,null,null,null,""]
[null,null,null,null,null,null,null,null,null,null,null,null,null,null,""]
[null,null,null,null,null,null,null,null,null,null,null,null,null,null,""]
[null,null,null,null,null,null,null,null,null,null,null,null,null,null,""]
[null,null,null,null,null,null,null,null,null,null,null,null,null,null,""]
[null,null,null,null,null,null,null,null,null,null,null,null,null,null,""]
[null,null,null,null,null,null,null,null,null,null,null,null,null,null,""]
[null,null,null,null,null,null,null,null,null,null,null,null,null,null,""]
[null,null,null,null,null,null,null,null,null,null,null,null,null,null,""]
[null,null,null,null,null,null,null,null,null,null,null,null,null,null,""]
[null,null,null,null,null,null,null,null,null,null,null,null,null,null,""]
[null,null,null,null,null,null,null,null,null,null,null,null,null,null,""]
[null,null,null,null,null,null,null,null,null,null,null,null,null,null,""]
[null,null,null,null,null,null,null,null,null,null,null,null,null,null,""]
[null,null,null,null,null,null,null,null,null,null,null,null,null,null,""]
[null,null,null,null,null,null,null,null,null,null,null,null,null,null,{"$f":"IF(AND(ISNUMBER(L71), ISNUMBER(M71), ISNUMBER(N71)),L71*M71*N71,\"\")","v":""}]
[null,null,null,null,null,null,null,null,null,null,null,null,null,null,""]
[null,null,null,null,null,null,null,null,null,null,null,null,null,null,""]

{"sheet":"MotorControllers","index":3,"n_rows":23,"n_cols":9,"rows_kept":23,"cut":false,"hidden":false,"merged":[]}
[]
[]
[null,null,null,"Default CP value"]
[]
["MotorController name","IP","AONet ID","Sends to forgein AONet IP","BACnet Instance","Weather station","Outdoor temp. connected"]
["WxC1",null,1,null,1001]
["WxC2",null,2,null,1002]
["WxC3",null,3,null,1003]
["WxC4",null,4,null,1004,"WOW 600"]
["WxC5",null,5,null,1005]
[]
[null,null,null,null,null,null,null,null,"Note"]
[null,null,null,null,null,null,null,null,"* Fill in the Motor controllers table before cteating the WxC sheets and the BACnet objects list."]
[null,null,null,null,null,null,null,null,"* The Motor controllers names and the BACnet Instance numbers must be filled before creating the BACnet objects list."]
[null,null,null,null,null,null,null,null,"* Select the BACnet objects you need, depending on the integration requirements, as agreed with the BMS company. "]
[]
[]
[]
[null,null,null,null,null,null,null,null,"Default CP value"]
[null,null,null,null,null,null,null,null,"In projects with no CFD simulation, send the address of the project to Ventilation Institute, and receive, "]
[null,null,null,null,null,null,null,null,"in return, the default CP value for the project."]
[null,null,null,null,null,null,null,null,"Insert the received value in cell “E3” and it will also show in the new ‘Default CP1’ colon of the CP values"]
[null,null,null,null,null,null,null,null,"table of each of the WxC sheets."]

{"sheet":"WCCTemplate","index":4,"n_rows":44,"n_cols":36,"rows_kept":44,"cut":false,"hidden":true,"merged":[[21,16,21,23],[21,27,21,34],[0,0,1,38],[2,28,2,38],[4,2,5,2],[6,2,13,2],[2,0,2,3],[2,4,2,13],[2,14,2,22],[2,25,2,27],[3,16,3,18],[3,19,3,21],[14,16,14,18],[15,16,15,18],[14,19,14,21],[15,19,15,21]]}
[{"$f":"BuildingView!E1&\": \"&BuildingView!G1","v":"Project name: "}]
[]
[{"$f":"MotorControllers!A6","v":"WxC1"},null,null,null,"MotorLines",null,null,null,null,null,null,null,null,null,"Motor Groups",null,null,null,null,null,null,null,null,null,null,"WWS 100",null,null,"NV Controllers"]
[null,null,"card","ML","Name\n1.4.x.143","ML usgae\n1.4.x.106","No. of motors\n1.4.x.17","Chain length (mm)","Window hight (cm)","Window bredth (cm)","No. of windows","Opening area\n1.4.x.140","Windows location","Tag in layout","MG","Name\n1.3.x.81","Master of \n AO      :    MG\n1.3.x.65",null,null,"Slave of\n AO    :     MG\n1.3.x.64",null,null,"CP values\n1.3.x.60 - 63","Orientation 1.3.x.128","Hight above ground 1.3.x.129","WSK add.","WWS serial no.\n1.5.x.16","Out door temp.\n1.5.x.49","NV Controller\n1.19.x","Buil.\n.157","Part\n.158","Zone\n.159","Name\n.161","Heating controller","Mech.Vent controller","Volume\n.131"]
["Cloud-ID 1.24.0.21",null,"S1",1,null,"Not used",null,null,null,null,null,{"$f":"IF(AND(ISNUMBER(H5), ISNUMBER(I5),ISNUMBER(J5),ISNUMBER(K5)),IF( (H5/1000*(I5/100+J5/100))<(I5*J5/10000),(H5/1000*(I5/100+J5/100)*K5),(I5*J5/10000)*K5),\"\")","v":""},null,null,null,null,null,":",null,null,":",null,null,null,null,null,null,null,null,{"$f":"IF(ISNUMBER((INDEX(ZoneDetails,MATCH($AF5,Zones,0),1))),INDEX(ZoneDetails,MATCH($AF5,Zones,0),1),\"\")","v":""},{"$f":"IF(ISNUMBER((INDEX(ZoneDetails,MATCH($AF5,Zones,0),2))),INDEX(ZoneDetails,MATCH($AF5,Zones,0),2),\"\")","v":""},null,{"$f":"IF(ISTEXT((INDEX(ZoneDetails,MATCH($AF5,Zones,0),4))),INDEX(ZoneDetails,MATCH($AF5,Zones,0),4),\"\")","v":""},{"$f":"IF(ISTEXT((INDEX(ZoneDetails,MATCH($AF5,Zones,0),6))),INDEX(ZoneDetails,MATCH($AF5,Zones,0),6),\"\")","v":""},{"$f":"IF(ISTEXT((INDEX(ZoneDetails,MATCH($AF5,Zones,0),7))),INDEX(ZoneDetails,MATCH($AF5,Zones,0),7),\"\")","v":""},{"$f":"IF(ISNUMBER(INDEX(ZoneDetails,MATCH($AF5,Zones,0),15)),INDEX(ZoneDetails,MATCH($AF5,Zones,0),15),\"\")","v":""}]
["MAC-adr 1.12.0.19/20",null,null,2,null,"Not used",null,null,null,null,null,{"$f":"IF(AND(ISNUMBER(H6), ISNUMBER(I6),ISNUMBER(J6),ISNUMBER(K6)),IF( (H6/1000*(I6/100+J6/100))<(I6*J6/10000),(H6/1000*(I6/100+J6/100)*K6),(I6*J6/10000)*K6),\"\")","v":""},null,null,null,null,null,":",null,null,":",null,null,null,null,null,null,null,null,"","",null,"","","",""]
["AONet  1.22.0.17",{"$f":"IF(ISNUMBER(VLOOKUP($A$3,MotorConts,3,FALSE)), VLOOKUP($A$3,MotorConts,3,FALSE),\"\")","v":1},"S2",1,null,"Not used",null,null,null,null,null,"",null,null,null,null,null,":",null,null,":",null,null,null,null,null,null,null,null,"","",null,"","","",""]
["IP  1.12.0.24",{"$f":"IF(ISTEXT(VLOOKUP($A$3,MotorConts,2,FALSE)), VLOOKUP($A$3,MotorConts,2,FALSE),\"\")","v":""},null,2,null,"Not used",null,null,null,null,null,"",null,null,null,null,null,":",null,null,":",null,null,null,null,null,null,null,null,"","",null,"","","",""]
["BACnet Instance  1.16.0.17",{"$f":"IF(ISNUMBER(VLOOKUP($A$3,MotorConts,5,FALSE)), VLOOKUP($A$3,MotorConts,5,FALSE),\"\")","v":1001},null,3,null,"Not used",null,null,null,null,null,"",null,null,null,null,null,":",null,null,":",null,null,null,null,null,null,null,null,"","",null,"","","",""]
["Weather station  1.8.0.16",{"$f":"IF(ISTEXT(VLOOKUP($A$3,MotorConts,6,FALSE)), VLOOKUP($A$3,MotorConts,6,FALSE),\"\")","v":""},null,4,null,"Not used",null,null,null,null,null,"",null,null,null,null,null,":",null,null,":",null,null,null,null,null,null,null,null,"","",null,"","","",""]
[null,null,null,5,null,"Not used",null,null,null,null,null,"",null,null,null,null,null,":",null,null,":",null,null,null,null,null,null,null,null,"","",null,"","","",""]
[null,null,null,6,null,"Not used",null,null,null,null,null,"",null,null,null,null,null,":",null,null,":",null,null,null,null,null,null,null,null,"","",null,"","","",""]
[null,null,null,7,null,"Not used",null,null,null,null,null,"",null,null,null,null,null,":",null,null,":",null,null,null,null,null,null,null,null,"","",null,"","","",""]
[null,null,null,8,null,"Not used",null,null,null,null,null,"",null,null,null,null,null,":",null,null,":",null,null,null,null,null,null,null,null,"","",null,"","","",""]
[]
[]
[]
[]
[]
[]
[null,null,null,null,null,null,null,null,null,null,null,null,null,null,null,null,"Aflæste trykforskelle på bygningen i forhold til normaltryk (325 Pa) ved givne vindhastigheder"]
[null,null,null,null,null,null,"CP values",null,null,null,null,null,null,null,null,null,"Vindhastighed i m/s",null,null,null,null,null,null,null,null,null,null,"Vindhastighed i m/s"]
[null,null,null,null,null,null,null,"Cp1","Cp2","Cp3","Cp4","Cp5","Cp6","Cp7","Cp8",null,{"$f":"AB23","v":5},{"$f":"AC23","v":5},{"$f":"AD23","v":5},{"$f":"AE23","v":5},{"$f":"AF23","v":5},{"$f":"AG23","v":5},{"$f":"AH23","v":5},5,null,null,null,5,5,5,5,5,5,5,5]
[null,null,null,null,null,"Default CP1",null,"0° - 44°","45° - 89°","90° - 134°","135° - 179°","180° - 224°","225° - 269°","270° - 314°","315° - 359°",null,"N","NØ","Ø","SØ","S","SV","V","NV",null,null,"MG","N","NØ","Ø","SØ","S","SV","V","NV"]
[]
[null,null,null,null,null,{"$f":"IF(MotorControllers!$E$3=\"\",\"\",MotorControllers!$E$3)","v":""},"MG1",{"$f":"IF(AB26=\"\",\"\",ROUND(2*Q26/(1.25*Q$23^2),2))","v":""},"","","","","","","",null,{"$f":"AB26-325","v":-325},-325,-325,-325,-325,-325,-325,-325,null,null,{"$f":"G26","v":"MG1"}]
[]
[null,null,null,null,null,{"$f":"IF(MotorControllers!$E$3=\"\",\"\",MotorControllers!$E$3)","v":""},"MG2",{"$f":"IF(AB28=\"\",\"\",ROUND(2*Q28/(1.25*Q$23^2),2))","v":""},"","","","","","","",null,{"$f":"AB28-325","v":-325},-325,-325,-325,-325,-325,-325,-325,null,null,{"$f":"G28","v":"MG2"}]
[]
[null,null,null,null,null,{"$f":"IF(MotorControllers!$E$3=\"\",\"\",MotorControllers!$E$3)","v":""},"MG3",{"$f":"IF(AB30=\"\",\"\",ROUND(2*Q30/(1.25*Q$23^2),2))","v":""},"","","","","","","",null,{"$f":"AB30-325","v":-325},-325,-325,-325,-325,-325,-325,-325,null,null,{"$f":"G30","v":"MG3"}]
[]
[null,null,null,null,null,{"$f":"IF(MotorControllers!$E$3=\"\",\"\",MotorControllers!$E$3)","v":""},"MG4",{"$f":"IF(AB32=\"\",\"\",ROUND(2*Q32/(1.25*Q$23^2),2))","v":""},"","","","","","","",null,{"$f":"AB32-325","v":-325},-325,-325,-325,-325,-325,-325,-325,null,null,{"$f":"G32","v":"MG4"}]
[]
[null,null,null,null,null,{"$f":"IF(MotorControllers!$E$3=\"\",\"\",MotorControllers!$E$3)","v":""},"MG5",{"$f":"IF(AB34=\"\",\"\",ROUND(2*Q34/(1.25*Q$23^2),2))","v":""},"","","","","","","",null,{"$f":"AB34-325","v":-325},-325,-325,-325,-325,-325,-325,-325,null,null,{"$f":"G34","v":"MG5"}]
[]
[null,null,null,null,null,{"$f":"IF(MotorControllers!$E$3=\"\",\"\",MotorControllers!$E$3)","v":""},"MG6",{"$f":"IF(AB36=\"\",\"\",ROUND(2*Q36/(1.25*Q$23^2),2))","v":""},"","","","","","","",null,{"$f":"AB36-325","v":-325},-325,-325,-325,-325,-325,-325,-325,null,null,{"$f":"G36","v":"MG6"}]
[]
[null,null,null,null,null,{"$f":"IF(MotorControllers!$E$3=\"\",\"\",MotorControllers!$E$3)","v":""},"MG7",{"$f":"IF(AB38=\"\",\"\",ROUND(2*Q38/(1.25*Q$23^2),2))","v":""},"","","","","","","",null,{"$f":"AB38-325","v":-325},-325,-325,-325,-325,-325,-325,-325,null,null,{"$f":"G38","v":"MG7"}]
[]
[null,null,null,null,null,{"$f":"IF(MotorControllers!$E$3=\"\",\"\",MotorControllers!$E$3)","v":""},"MG8",{"$f":"IF(AB40=\"\",\"\",ROUND(2*Q40/(1.25*Q$23^2),2))","v":""},"","","","","","","",null,{"$f":"AB40-325","v":-325},-325,-325,-325,-325,-325,-325,-325,null,null,{"$f":"G40","v":"MG8"}]
[]
[null,null,null,null,null,{"$f":"IF(MotorControllers!$E$3=\"\",\"\",MotorControllers!$E$3)","v":""},"MG9",{"$f":"IF(AB42=\"\",\"\",ROUND(2*Q42/(1.25*Q$23^2),2))","v":""},"","","","","","","",null,{"$f":"AB42-325","v":-325},-325,-325,-325,-325,-325,-325,-325,null,null,{"$f":"G42","v":"MG9"}]
[]
[null,null,null,null,null,{"$f":"IF(MotorControllers!$E$3=\"\",\"\",MotorControllers!$E$3)","v":""},"MG10",{"$f":"IF(AB44=\"\",\"\",ROUND(2*Q44/(1.25*Q$23^2),2))","v":""},"","","","","","","",null,{"$f":"AB44-325","v":-325},-325,-325,-325,-325,-325,-325,-325,null,null,{"$f":"G44","v":"MG10"}]

{"sheet":"PICS","index":5,"n_rows":673,"n_cols":3,"rows_kept":673,"cut":false,"hidden":true,"merged":[]}
["# keyname","object-name","description"]
["OBJECT_ANALOG_INPUT:1","Actual_position_motor_line_S1_X1","Motor line #1 Actual position"]
["OBJECT_ANALOG_INPUT:2","Actual_position_motor_line_S1_X2","Motor line #2 Actual position"]
["OBJECT_ANALOG_INPUT:3","Actual_position_motor_line_S2_X1","Motor line #3 Actual position"]
["OBJECT_ANALOG_INPUT:4","Actual_position_motor_line_S2_X2","Motor line #4 Actual position"]
["OBJECT_ANALOG_INPUT:5","Actual_position_motor_line_S2_X3","Motor line #5 Actual position"]
["OBJECT_ANALOG_INPUT:6","Actual_position_motor_line_S2_X4","Motor line #6 Actual position"]
["OBJECT_ANALOG_INPUT:7","Actual_position_motor_line_S2_X5","Motor line #7 Actual position"]
["OBJECT_ANALOG_INPUT:8","Actual_position_motor_line_S2_X6","Motor line #8 Actual position"]
["OBJECT_ANALOG_INPUT:9","Actual_position_motor_line_S2_X7","Motor line #9 Actual position"]
["OBJECT_ANALOG_INPUT:10","Actual_position_motor_line_S2_X8","Motor line #10 Actual position"]
["OBJECT_ANALOG_INPUT:11","Actual_max_position_motor_line_S1_X1","Motor line #1 Actual maximum position"]
["OBJECT_ANALOG_INPUT:12","Actual_max_position_motor_line_S1_X2","Motor line #2 Actual maximum position"]
["OBJECT_ANALOG_INPUT:13","Actual_max_position_motor_line_S2_X1","Motor line #3 Actual maximum position"]
["OBJECT_ANALOG_INPUT:14","Actual_max_position_motor_line_S2_X2","Motor line #4 Actual maximum position"]
["OBJECT_ANALOG_INPUT:15","Actual_max_position_motor_line_S2_X3","Motor line #5 Actual maximum position"]
["OBJECT_ANALOG_INPUT:16","Actual_max_position_motor_line_S2_X4","Motor line #6 Actual maximum position"]
["OBJECT_ANALOG_INPUT:17","Actual_max_position_motor_line_S2_X5","Motor line #7 Actual maximum position"]
["OBJECT_ANALOG_INPUT:18","Actual_max_position_motor_line_S2_X6","Motor line #8 Actual maximum position"]
["OBJECT_ANALOG_INPUT:19","Actual_max_position_motor_line_S2_X7","Motor line #9 Actual maximum position"]
["OBJECT_ANALOG_INPUT:20","Actual_max_position_motor_line_S2_X8","Motor line #10 Actual maximum position"]
["OBJECT_ANALOG_INPUT:21","Alarm_wind_direction_smoke_zone_1","Smoke zone #1 Sampled alarm wind direction"]
["OBJECT_ANALOG_INPUT:22","Alarm_wind_direction_smoke_zone_2","Smoke zone #2 Sampled alarm wind direction"]
["OBJECT_ANALOG_INPUT:23","Alarm_wind_direction_smoke_zone_3","Smoke zone #3 Sampled alarm wind direction"]
["OBJECT_ANALOG_INPUT:24","Alarm_wind_direction_smoke_zone_4","Smoke zone #4 Sampled alarm wind direction"]
["OBJECT_ANALOG_INPUT:25","Alarm_wind_direction_smoke_zone_5","Smoke zone #5 Sampled alarm wind direction"]
["OBJECT_ANALOG_INPUT:26","Alarm_wind_direction_smoke_zone_6","Smoke zone #6 Sampled alarm wind direction"]
["OBJECT_ANALOG_INPUT:27","Alarm_wind_direction_smoke_zone_7","Smoke zone #7 Sampled alarm wind direction"]
["OBJECT_ANALOG_INPUT:28","Alarm_wind_direction_smoke_zone_8","Smoke zone #8 Sampled alarm wind direction"]
["OBJECT_ANALOG_INPUT:29","Alarm_wind_direction_smoke_zone_9","Smoke zone #9 Sampled alarm wind direction"]
["OBJECT_ANALOG_INPUT:30","Alarm_wind_direction_smoke_zone_10","Smoke zone #10 Sampled alarm wind direction"]
["OBJECT_ANALOG_INPUT:31","Building_mode_out","NV controller, Actual Building mode"]
["OBJECT_ANALOG_INPUT:32","Temperature_in_NV_controller_1","NV controller #1 Actual temperature"]
["OBJECT_ANALOG_INPUT:33","Temperature_in_NV_controller_2","NV controller #2 Actual temperature"]
["OBJECT_ANALOG_INPUT:34","Temperature_in_NV_controller_3","NV controller #3 Actual temperature"]
["OBJECT_ANALOG_INPUT:35","Temperature_in_NV_controller_4","NV controller #4 Actual temperature"]
["OBJECT_ANALOG_INPUT:36","Temperature_in_NV_controller_5","NV controller #5 Actual temperature"]
["OBJECT_ANALOG_INPUT:37","Temperature_in_NV_controller_6","NV controller #6 Actual temperature"]
["OBJECT_ANALOG_INPUT:38","Temperature_in_NV_controller_7","NV controller #7 Actual temperature"]
["OBJECT_ANALOG_INPUT:39","Temperature_in_NV_controller_8","NV controller #8 Actual temperature"]
["OBJECT_ANALOG_INPUT:40","Temperature_in_NV_controller_9","NV controller #9 Actual temperature"]
["OBJECT_ANALOG_INPUT:41","Temperature_in_NV_controller_10","NV controller #10 Actual temperature"]
["OBJECT_ANALOG_INPUT:42","CO2_in_NV_controller_1","NV controller #1 Actual CO2"]
["OBJECT_ANALOG_INPUT:43","CO2_in_NV_controller_2","NV controller #2 Actual CO2"]
["OBJECT_ANALOG_INPUT:44","CO2_in_NV_controller_3","NV controller #3 Actual CO2"]
["OBJECT_ANALOG_INPUT:45","CO2_in_NV_controller_4","NV controller #4 Actual CO2"]
["OBJECT_ANALOG_INPUT:46","CO2_in_NV_controller_5","NV controller #5 Actual CO2"]
["OBJECT_ANALOG_INPUT:47","CO2_in_NV_controller_6","NV controller #6 Actual CO2"]
["OBJECT_ANALOG_INPUT:48","CO2_in_NV_controller_7","NV controller #7 Actual CO2"]
["OBJECT_ANALOG_INPUT:49","CO2_in_NV_controller_8","NV controller #8 Actual CO2"]
["OBJECT_ANALOG_INPUT:50","CO2_in_NV_controller_9","NV controller #9 Actual CO2"]
["OBJECT_ANALOG_INPUT:51","CO2_in_NV_controller_10","NV controller #10 Actual CO2"]
["OBJECT_ANALOG_INPUT:52","Relative_humidity_in_NV_controller_1","NV controller #1 Actual relative humidity"]
["OBJECT_ANALOG_INPUT:53","Relative_humidity_in_NV_controller_2","NV controller #2 Actual relative humidity"]
["OBJECT_ANALOG_INPUT:54","Relative_humidity_in_NV_controller_3","NV controller #3 Actual relative humidity"]
["OBJECT_ANALOG_INPUT:55","Relative_humidity_in_NV_controller_4","NV controller #4 Actual relative humidity"]
["OBJECT_ANALOG_INPUT:56","Relative_humidity_in_NV_controller_5","NV controller #5 Actual relative humidity"]
["OBJECT_ANALOG_INPUT:57","Relative_humidity_in_NV_controller_6","NV controller #6 Actual relative humidity"]
["OBJECT_ANALOG_INPUT:58","Relative_humidity_in_NV_controller_7","NV controller #7 Actual relative humidity"]
["OBJECT_ANALOG_INPUT:59","Relative_humidity_in_NV_controller_8","NV controller #8 Actual relative humidity"]
["OBJECT_ANALOG_INPUT:60","Relative_humidity_in_NV_controller_9","NV controller #9 Actual relative humidity"]
["OBJECT_ANALOG_INPUT:61","Relative_humidity_in_NV_controller_10","NV controller #10 Actual relative humidity"]
["OBJECT_ANALOG_INPUT:62","NV_Actual_ventilation_temperature_setpoint_1","NV controller #1 Actual ventilation temperature setpoint"]
["OBJECT_ANALOG_INPUT:63","NV_Actual_ventilation_temperature_setpoint_2","NV controller #2 Actual ventilation temperature setpoint"]
["OBJECT_ANALOG_INPUT:64","NV_Actual_ventilation_temperature_setpoint_3","NV controller #3 Actual ventilation temperature setpoint"]
["OBJECT_ANALOG_INPUT:65","NV_Actual_ventilation_temperature_setpoint_4","NV controller #4 Actual ventilation temperature setpoint"]
["OBJECT_ANALOG_INPUT:66","NV_Actual_ventilation_temperature_setpoint_5","NV controller #5 Actual ventilation temperature setpoint"]
["OBJECT_ANALOG_INPUT:67","NV_Actual_ventilation_temperature_setpoint_6","NV controller #6 Actual ventilation temperature setpoint"]
["OBJECT_ANALOG_INPUT:68","NV_Actual_ventilation_temperature_setpoint_7","NV controller #7 Actual ventilation temperature setpoint"]
["OBJECT_ANALOG_INPUT:69","NV_Actual_ventilation_temperature_setpoint_8","NV controller #8 Actual ventilation temperature setpoint"]
["OBJECT_ANALOG_INPUT:70","NV_Actual_ventilation_temperature_setpoint_9","NV controller #9 Actual ventilation temperature setpoint"]
["OBJECT_ANALOG_INPUT:71","NV_Actual_ventilation_temperature_setpoint_10","NV controller #10 Actual ventilation temperature setpoint"]
["OBJECT_ANALOG_INPUT:72","NV_Actual_heating_temperature_setpoint_1","NV controller #1 Actual heating temperature setpoint"]
["OBJECT_ANALOG_INPUT:73","NV_Actual_heating_temperature_setpoint_2","NV controller #2 Actual heating temperature setpoint"]
["OBJECT_ANALOG_INPUT:74","NV_Actual_heating_temperature_setpoint_3","NV controller #3 Actual heating temperature setpoint"]
["OBJECT_ANALOG_INPUT:75","NV_Actual_heating_temperature_setpoint_4","NV controller #4 Actual heating temperature setpoint"]
["OBJECT_ANALOG_INPUT:76","NV_Actual_heating_temperature_setpoint_5","NV controller #5 Actual heating temperature setpoint"]
["OBJECT_ANALOG_INPUT:77","NV_Actual_heating_temperature_setpoint_6","NV controller #6 Actual heating temperature setpoint"]
["OBJECT_ANALOG_INPUT:78","NV_Actual_heating_temperature_setpoint_7","NV controller #7 Actual heating temperature setpoint"]
["OBJECT_ANALOG_INPUT:79","NV_Actual_heating_temperature_setpoint_8","NV controller #8 Actual heating temperature setpoint"]
["OBJECT_ANALOG_INPUT:80","NV_Actual_heating_temperature_setpoint_9","NV controller #9 Actual heating temperature setpoint"]
["OBJECT_ANALOG_INPUT:81","NV_Actual_heating_temperature_setpoint_10","NV controller #10 Actual heating temperature setpoint"]
["OBJECT_ANALOG_INPUT:82","NV_Ventilation_status_1","NV controller #1 Ventilation status"]
["OBJECT_ANALOG_INPUT:83","NV_Ventilation_status_2","NV controller #2 Ventilation status"]
["OBJECT_ANALOG_INPUT:84","NV_Ventilation_status_3","NV controller #3 Ventilation status"]
["OBJECT_ANALOG_INPUT:85","NV_Ventilation_status_4","NV controller #4 Ventilation status"]
["OBJECT_ANALOG_INPUT:86","NV_Ventilation_status_5","NV controller #5 Ventilation status"]
["OBJECT_ANALOG_INPUT:87","NV_Ventilation_status_6","NV controller #6 Ventilation status"]
["OBJECT_ANALOG_INPUT:88","NV_Ventilation_status_7","NV controller #7 Ventilation status"]
["OBJECT_ANALOG_INPUT:89","NV_Ventilation_status_8","NV controller #8 Ventilation status"]
["OBJECT_ANALOG_INPUT:90","NV_Ventilation_status_9","NV controller #9 Ventilation status"]
["OBJECT_ANALOG_INPUT:91","NV_Ventilation_status_10","NV controller #10 Ventilation status"]
["OBJECT_ANALOG_INPUT:92","NV_Comfort_Status_1","NV controller #1 Comfort status"]
["OBJECT_ANALOG_INPUT:93","NV_Comfort_Status_2","NV controller #2 Comfort status"]
["OBJECT_ANALOG_INPUT:94","NV_Comfort_Status_3","NV controller #3 Comfort status"]
["OBJECT_ANALOG_INPUT:95","NV_Comfort_Status_4","NV controller #4 Comfort status"]
["OBJECT_ANALOG_INPUT:96","NV_Comfort_Status_5","NV controller #5 Comfort status"]
["OBJECT_ANALOG_INPUT:97","NV_Comfort_Status_6","NV controller #6 Comfort status"]
["OBJECT_ANALOG_INPUT:98","NV_Comfort_Status_7","NV controller #7 Comfort status"]
["OBJECT_ANALOG_INPUT:99","NV_Comfort_Status_8","NV controller #8 Comfort status"]
["OBJECT_ANALOG_INPUT:100","NV_Comfort_Status_9","NV controller #9 Comfort status"]
["OBJECT_ANALOG_INPUT:101","NV_Comfort_Status_10","NV controller #10 Comfort status"]
["OBJECT_ANALOG_INPUT:102","Mech_vent_FutureVent_1","Mech. vent. controller #1 FutureVent"]
["OBJECT_ANALOG_INPUT:103","Mech_vent_FutureVent_2","Mech. vent. controller #2 FutureVent"]
["OBJECT_ANALOG_INPUT:104","Mech_vent_FutureVent_3","Mech. vent. controller #3 FutureVent"]
["OBJECT_ANALOG_INPUT:105","Mech_vent_FutureVent_4","Mech. vent. controller #4 FutureVent"]
["OBJECT_ANALOG_INPUT:106","Mech_vent_FutureVent_5","Mech. vent. controller #5 FutureVent"]
["OBJECT_ANALOG_INPUT:107","Mech_vent_FutureVent_6","Mech. vent. controller #6 FutureVent"]
["OBJECT_ANALOG_INPUT:108","Mech_vent_FutureVent_7","Mech. vent. controller #7 FutureVent"]
["OBJECT_ANALOG_INPUT:109","Mech_vent_FutureVent_8","Mech. vent. controller #8 FutureVent"]
["OBJECT_ANALOG_INPUT:110","Mech_vent_FutureVent_9","Mech. vent. controller #9 FutureVent"]
["OBJECT_ANALOG_INPUT:111","Mech_vent_FutureVent_10","Mech. vent. controller #10 FutureVent"]
["OBJECT_ANALOG_INPUT:112","Mech_vent_value_1","Mech. vent. controller #1 Mech. vent. value"]
["OBJECT_ANALOG_INPUT:113","Mech_vent_value_2","Mech. vent. controller #2 Mech. vent. value"]
["OBJECT_ANALOG_INPUT:114","Mech_vent_value_3","Mech. vent. controller #3 Mech. vent. value"]
["OBJECT_ANALOG_INPUT:115","Mech_vent_value_4","Mech. vent. controller #4 Mech. vent. value"]
["OBJECT_ANALOG_INPUT:116","Mech_vent_value_5","Mech. vent. controller #5 Mech. vent. value"]
["OBJECT_ANALOG_INPUT:117","Mech_vent_value_6","Mech. vent. controller #6 Mech. vent. value"]
["OBJECT_ANALOG_INPUT:118","Mech_vent_value_7","Mech. vent. controller #7 Mech. vent. value"]
["OBJECT_ANALOG_INPUT:119","Mech_vent_value_8","Mech. vent. controller #8 Mech. vent. value"]
["OBJECT_ANALOG_INPUT:120","Mech_vent_value_9","Mech. vent. controller #9 Mech. vent. value"]
["OBJECT_ANALOG_INPUT:121","Mech_vent_value_10","Mech. vent. controller #10 Mech. vent. value"]
["OBJECT_ANALOG_INPUT:122","Mech_vent_ZoneVent_Air_supply_temperature_1","Mech. vent. controller #1 Air supply temperature setpoint"]
["OBJECT_ANALOG_INPUT:123","Mech_vent_ZoneVent_Air_supply_temperature_2","Mech. vent. controller #2 Air supply temperature setpoint"]
["OBJECT_ANALOG_INPUT:124","Mech_vent_ZoneVent_Air_supply_temperature_3","Mech. vent. controller #3 Air supply temperature setpoint"]
["OBJECT_ANALOG_INPUT:125","Mech_vent_ZoneVent_Air_supply_temperature_4","Mech. vent. controller #4 Air supply temperature setpoint"]
["OBJECT_ANALOG_INPUT:126","Mech_vent_ZoneVent_Air_supply_temperature_5","Mech. vent. controller #5 Air supply temperature setpoint"]
["OBJECT_ANALOG_INPUT:127","Mech_vent_ZoneVent_Air_supply_temperature_6","Mech. vent. controller #6 Air supply temperature setpoint"]
["OBJECT_ANALOG_INPUT:128","Mech_vent_ZoneVent_Air_supply_temperature_7","Mech. vent. controller #7 Air supply temperature setpoint"]
["OBJECT_ANALOG_INPUT:129","Mech_vent_ZoneVent_Air_supply_temperature_8","Mech. vent. controller #8 Air supply temperature setpoint"]
["OBJECT_ANALOG_INPUT:130","Mech_vent_ZoneVent_Air_supply_temperature_9","Mech. vent. controller #9 Air supply temperature setpoint"]
["OBJECT_ANALOG_INPUT:131","Mech_vent_ZoneVent_Air_supply_temperature_10","Mech. vent. controller #10 Air supply temperature setpoint"]
["OBJECT_ANALOG_INPUT:132","Heating_Valve_1","Heating controller #1 Heating valve value"]
["OBJECT_ANALOG_INPUT:133","Heating_Valve_2","Heating controller #2 Heating valve value"]
["OBJECT_ANALOG_INPUT:134","Heating_Valve_3","Heating controller #3 Heating valve value"]
["OBJECT_ANALOG_INPUT:135","Heating_Valve_4","Heating controller #4 Heating valve value"]
["OBJECT_ANALOG_INPUT:136","Heating_Valve_5","Heating controller #5 Heating valve value"]
["OBJECT_ANALOG_INPUT:137","Heating_Valve_6","Heating controller #6 Heating valve value"]
["OBJECT_ANALOG_INPUT:138","Heating_Valve_7","Heating controller #7 Heating valve value"]
["OBJECT_ANALOG_INPUT:139","Heating_Valve_8","Heating controller #8 Heating valve value"]
["OBJECT_ANALOG_INPUT:140","Heating_Valve_9","Heating controller #9 Heating valve value"]
["OBJECT_ANALOG_INPUT:141","Heating_Valve_10","Heating controller #10 Heating valve value"]
["OBJECT_ANALOG_INPUT:142","Weather_temperature","Weather, Temperature"]
["OBJECT_ANALOG_INPUT:143","Weather_rain_intensity","Weather, Precipitation Intensity"]
["OBJECT_ANALOG_INPUT:144","Weather_relative_humidity","Weather, Relative Humidity"]
["OBJECT_ANALOG_INPUT:145","Weather_humidity","Weather, Absolute Humidity"]
["OBJECT_ANALOG_INPUT:146","Weather_dew_point","Weather, Dewpoint"]
["OBJECT_ANALOG_INPUT:147","Weather_status_sensor","Weather, Sensor Status"]
["OBJECT_ANALOG_INPUT:148","Weather_wind_status","Weather, Wind Status"]
["OBJECT_ANALOG_INPUT:149","Actual_temperature_setpoint_NV_controller_1","NV controller #1 Actual temperature setpoint"]
["OBJECT_ANALOG_INPUT:150","Actual_temperature_setpoint_NV_controller_2","NV controller #2 Actual temperature setpoint"]
["OBJECT_ANALOG_INPUT:151","Actual_temperature_setpoint_NV_controller_3","NV controller #3 Actual temperature setpoint"]
["OBJECT_ANALOG_INPUT:152","Actual_temperature_setpoint_NV_controller_4","NV controller #4 Actual temperature setpoint"]
["OBJECT_ANALOG_INPUT:153","Actual_temperature_setpoint_NV_controller_5","NV controller #5 Actual temperature setpoint"]
["OBJECT_ANALOG_INPUT:154","Actual_temperature_setpoint_NV_controller_6","NV controller #6 Actual temperature setpoint"]
["OBJECT_ANALOG_INPUT:155","Actual_temperature_setpoint_NV_controller_7","NV controller #7 Actual temperature setpoint"]
["OBJECT_ANALOG_INPUT:156","Actual_temperature_setpoint_NV_controller_8","NV controller #8 Actual temperature setpoint"]
["OBJECT_ANALOG_INPUT:157","Actual_temperature_setpoint_NV_controller_9","NV controller #9 Actual temperature setpoint"]
["OBJECT_ANALOG_INPUT:158","Actual_temperature_setpoint_NV_controller_10","NV controller #10 Actual temperature setpoint"]
["OBJECT_ANALOG_INPUT:159","Blind_actual_slat_position_motor_line_S1_X1","Motor line #1 Actual louvre position"]
["OBJECT_ANALOG_INPUT:160","Blind_actual_slat_position_motor_line_S1_X2","Motor line #2 Actual louvre position"]
["OBJECT_ANALOG_INPUT:161","Blind_actual_slat_position_motor_line_S2_X1","Motor line #3 Actual louvre position"]
["OBJECT_ANALOG_INPUT:162","Blind_actual_slat_position_motor_line_S2_X2","Motor line #4 Actual louvre position"]
["OBJECT_ANALOG_INPUT:163","Blind_actual_slat_position_motor_line_S2_X3","Motor line #5 Actual louvre position"]
["OBJECT_ANALOG_INPUT:164","Blind_actual_slat_position_motor_line_S2_X4","Motor line #6 Actual louvre position"]
["OBJECT_ANALOG_INPUT:165","Blind_actual_slat_position_motor_line_S2_X5","Motor line #7 Actual louvre position"]
["OBJECT_ANALOG_INPUT:166","Blind_actual_slat_position_motor_line_S2_X6","Motor line #8 Actual louvre position"]
["OBJECT_ANALOG_INPUT:167","Blind_actual_slat_position_motor_line_S2_X7","Motor line #9 Actual louvre position"]
["OBJECT_ANALOG_INPUT:168","Blind_actual_slat_position_motor_line_S2_X8","Motor line #10 Actual louvre position"]
["OBJECT_ANALOG_INPUT:169","Status_sunscreen_controller_1","Motor group #1 Sunscreen status"]
["OBJECT_ANALOG_INPUT:170","Status_sunscreen_controller_2","Motor group #2 Sunscreen status"]
["OBJECT_ANALOG_INPUT:171","Status_sunscreen_controller_3","Motor group #3 Sunscreen status"]
["OBJECT_ANALOG_INPUT:172","Status_sunscreen_controller_4","Motor group #4 Sunscreen status"]
["OBJECT_ANALOG_INPUT:173","Status_sunscreen_controller_5","Motor group #5 Sunscreen status"]
["OBJECT_ANALOG_INPUT:174","Status_sunscreen_controller_6","Motor group #6 Sunscreen status"]
["OBJECT_ANALOG_INPUT:175","Status_sunscreen_controller_7","Motor group #7 Sunscreen status"]
["OBJECT_ANALOG_INPUT:176","Status_sunscreen_controller_8","Motor group #8 Sunscreen status"]
["OBJECT_ANALOG_INPUT:177","Status_sunscreen_controller_9","Motor group #9 Sunscreen status"]
["OBJECT_ANALOG_INPUT:178","Status_sunscreen_controller_10","Motor group #10 Sunscreen status"]
["OBJECT_ANALOG_OUTPUT:1","Max_position_motor_group_1","Motor group #1 BACnet max. comfort pos. motor gr."]
["OBJECT_ANALOG_OUTPUT:2","Max_position_motor_group_2","Motor group #2 BACnet max. comfort pos. motor gr."]
["OBJECT_ANALOG_OUTPUT:3","Max_position_motor_group_3","Motor group #3 BACnet max. comfort pos. motor gr."]
["OBJECT_ANALOG_OUTPUT:4","Max_position_motor_group_4","Motor group #4 BACnet max. comfort pos. motor gr."]
["OBJECT_ANALOG_OUTPUT:5","Max_position_motor_group_5","Motor group #5 BACnet max. comfort pos. motor gr."]
["OBJECT_ANALOG_OUTPUT:6","Max_position_motor_group_6","Motor group #6 BACnet max. comfort pos. motor gr."]
["OBJECT_ANALOG_OUTPUT:7","Max_position_motor_group_7","Motor group #7 BACnet max. comfort pos. motor gr."]
["OBJECT_ANALOG_OUTPUT:8","Max_position_motor_group_8","Motor group #8 BACnet max. comfort pos. motor gr."]
["OBJECT_ANALOG_OUTPUT:9","Max_position_motor_group_9","Motor group #9 BACnet max. comfort pos. motor gr."]
["OBJECT_ANALOG_OUTPUT:10","Max_position_motor_group_10","Motor group #10 BACnet max. comfort pos. motor gr."]
["OBJECT_ANALOG_OUTPUT:11","Auto_position_motor_group_1","Motor group #1 Automatic opening"]
["OBJECT_ANALOG_OUTPUT:12","Auto_position_motor_group_2","Motor group #2 Automatic opening"]
["OBJECT_ANALOG_OUTPUT:13","Auto_position_motor_group_3","Motor group #3 Automatic opening"]
["OBJECT_ANALOG_OUTPUT:14","Auto_position_motor_group_4","Motor group #4 Automatic opening"]
["OBJECT_ANALOG_OUTPUT:15","Auto_position_motor_group_5","Motor group #5 Automatic opening"]
["OBJECT_ANALOG_OUTPUT:16","Auto_position_motor_group_6","Motor group #6 Automatic opening"]
["OBJECT_ANALOG_OUTPUT:17","Auto_position_motor_group_7","Motor group #7 Automatic opening"]
["OBJECT_ANALOG_OUTPUT:18","Auto_position_motor_group_8","Motor group #8 Automatic opening"]
["OBJECT_ANALOG_OUTPUT:19","Auto_position_motor_group_9","Motor group #9 Automatic opening"]
["OBJECT_ANALOG_OUTPUT:20","Auto_position_motor_group_10","Motor group #10 Automatic opening"]
["OBJECT_ANALOG_OUTPUT:21","Max_position_motor_line_S1_X1","Motor line #1 Max comfort pos. BACnet"]
["OBJECT_ANALOG_OUTPUT:22","Max_position_motor_line_S1_X2","Motor line #2 Max comfort pos. BACnet"]
["OBJECT_ANALOG_OUTPUT:23","Max_position_motor_line_S2_X1","Motor line #3 Max comfort pos. BACnet"]
["OBJECT_ANALOG_OUTPUT:24","Max_position_motor_line_S2_X2","Motor line #4 Max comfort pos. BACnet"]
["OBJECT_ANALOG_OUTPUT:25","Max_position_motor_line_S2_X3","Motor line #5 Max comfort pos. BACnet"]
["OBJECT_ANALOG_OUTPUT:26","Max_position_motor_line_S2_X4","Motor line #6 Max comfort pos. BACnet"]
["OBJECT_ANALOG_OUTPUT:27","Max_position_motor_line_S2_X5","Motor line #7 Max comfort pos. BACnet"]
["OBJECT_ANALOG_OUTPUT:28","Max_position_motor_line_S2_X6","Motor line #8 Max comfort pos. BACnet"]
["OBJECT_ANALOG_OUTPUT:29","Max_position_motor_line_S2_X7","Motor line #9 Max comfort pos. BACnet"]
["OBJECT_ANALOG_OUTPUT:30","Max_position_motor_line_S2_X8","Motor line #10 Max comfort pos. BACnet"]
["OBJECT_ANALOG_OUTPUT:31","Auto_position_motor_line_S1_X1","Motor line #1 Automatic position"]
["OBJECT_ANALOG_OUTPUT:32","Auto_position_motor_line_S1_X2","Motor line #2 Automatic position"]
["OBJECT_ANALOG_OUTPUT:33","Auto_position_motor_line_S2_X1","Motor line #3 Automatic position"]
["OBJECT_ANALOG_OUTPUT:34","Auto_position_motor_line_S2_X2","Motor line #4 Automatic position"]
["OBJECT_ANALOG_OUTPUT:35","Auto_position_motor_line_S2_X3","Motor line #5 Automatic position"]
["OBJECT_ANALOG_OUTPUT:36","Auto_position_motor_line_S2_X4","Motor line #6 Automatic position"]
["OBJECT_ANALOG_OUTPUT:37","Auto_position_motor_line_S2_X5","Motor line #7 Automatic position"]
["OBJECT_ANALOG_OUTPUT:38","Auto_position_motor_line_S2_X6","Motor line #8 Automatic position"]
["OBJECT_ANALOG_OUTPUT:39","Auto_position_motor_line_S2_X7","Motor line #9 Automatic position"]
["OBJECT_ANALOG_OUTPUT:40","Auto_position_motor_line_S2_X8","Motor line #10 Automatic position"]
["OBJECT_ANALOG_OUTPUT:41","Min_position_motor_group_1","Motor group #1 Min. position from BACnet"]
["OBJECT_ANALOG_OUTPUT:42","Min_position_motor_group_2","Motor group #2 Min. position from BACnet"]
["OBJECT_ANALOG_OUTPUT:43","Min_position_motor_group_3","Motor group #3 Min. position from BACnet"]
["OBJECT_ANALOG_OUTPUT:44","Min_position_motor_group_4","Motor group #4 Min. position from BACnet"]
["OBJECT_ANALOG_OUTPUT:45","Min_position_motor_group_5","Motor group #5 Min. position from BACnet"]
["OBJECT_ANALOG_OUTPUT:46","Min_position_motor_group_6","Motor group #6 Min. position from BACnet"]
["OBJECT_ANALOG_OUTPUT:47","Min_position_motor_group_7","Motor group #7 Min. position from BACnet"]
["OBJECT_ANALOG_OUTPUT:48","Min_position_motor_group_8","Motor group #8 Min. position from BACnet"]
["OBJECT_ANALOG_OUTPUT:49","Min_position_motor_group_9","Motor group #9 Min. position from BACnet"]
["OBJECT_ANALOG_OUTPUT:50","Min_position_motor_group_10","Motor group #10 Min. position from BACnet"]
["OBJECT_ANALOG_OUTPUT:51","Blind_slat_position_motor_line_S1_X1","Motor line #1 Louvre position"]
["OBJECT_ANALOG_OUTPUT:52","Blind_slat_position_motor_line_S1_X2","Motor line #2 Louvre position"]
["OBJECT_ANALOG_OUTPUT:53","Blind_slat_position_motor_line_S2_X1","Motor line #3 Louvre position"]
["OBJECT_ANALOG_OUTPUT:54","Blind_slat_position_motor_line_S2_X2","Motor line #4 Louvre position"]
["OBJECT_ANALOG_OUTPUT:55","Blind_slat_position_motor_line_S2_X3","Motor line #5 Louvre position"]
["OBJECT_ANALOG_OUTPUT:56","Blind_slat_position_motor_line_S2_X4","Motor line #6 Louvre position"]
["OBJECT_ANALOG_OUTPUT:57","Blind_slat_position_motor_line_S2_X5","Motor line #7 Louvre position"]
["OBJECT_ANALOG_OUTPUT:58","Blind_slat_position_motor_line_S2_X6","Motor line #8 Louvre position"]
["OBJECT_ANALOG_OUTPUT:59","Blind_slat_position_motor_line_S2_X7","Motor line #9 Louvre position"]
["OBJECT_ANALOG_OUTPUT:60","Blind_slat_position_motor_line_S2_X8","Motor line #10 Louvre position"]
["OBJECT_ANALOG_VALUE:1","Hand_position_motor_group_1","Motor group #1 Manual absolute position"]
["OBJECT_ANALOG_VALUE:2","Hand_position_motor_group_2","Motor group #2 Manual absolute position"]
["OBJECT_ANALOG_VALUE:3","Hand_position_motor_group_3","Motor group #3 Manual absolute position"]
["OBJECT_ANALOG_VALUE:4","Hand_position_motor_group_4","Motor group #4 Manual absolute position"]
["OBJECT_ANALOG_VALUE:5","Hand_position_motor_group_5","Motor group #5 Manual absolute position"]
["OBJECT_ANALOG_VALUE:6","Hand_position_motor_group_6","Motor group #6 Manual absolute position"]
["OBJECT_ANALOG_VALUE:7","Hand_position_motor_group_7","Motor group #7 Manual absolute position"]
["OBJECT_ANALOG_VALUE:8","Hand_position_motor_group_8","Motor group #8 Manual absolute position"]
["OBJECT_ANALOG_VALUE:9","Hand_position_motor_group_9","Motor group #9 Manual absolute position"]
["OBJECT_ANALOG_VALUE:10","Hand_position_motor_group_10","Motor group #10 Manual absolute position"]
["OBJECT_ANALOG_VALUE:11","Hand_relative_position_motor_group_1","Motor group #1 Manual relative position"]
["OBJECT_ANALOG_VALUE:12","Hand_relative_position_motor_group_2","Motor group #2 Manual relative position"]
["OBJECT_ANALOG_VALUE:13","Hand_relative_position_motor_group_3","Motor group #3 Manual relative position"]
["OBJECT_ANALOG_VALUE:14","Hand_relative_position_motor_group_4","Motor group #4 Manual relative position"]
["OBJECT_ANALOG_VALUE:15","Hand_relative_position_motor_group_5","Motor group #5 Manual relative position"]
["OBJECT_ANALOG_VALUE:16","Hand_relative_position_motor_group_6","Motor group #6 Manual relative position"]
["OBJECT_ANALOG_VALUE:17","Hand_relative_position_motor_group_7","Motor group #7 Manual relative position"]
["OBJECT_ANALOG_VALUE:18","Hand_relative_position_motor_group_8","Motor group #8 Manual relative position"]
["OBJECT_ANALOG_VALUE:19","Hand_relative_position_motor_group_9","Motor group #9 Manual relative position"]
["OBJECT_ANALOG_VALUE:20","Hand_relative_position_motor_group_10","Motor group #10 Manual relative position"]
["OBJECT_ANALOG_VALUE:21","Hand_position_motor_line_S1_X1","Motor line #1 Manual absolute position"]
["OBJECT_ANALOG_VALUE:22","Hand_position_motor_line_S1_X2","Motor line #2 Manual absolute position"]
["OBJECT_ANALOG_VALUE:23","Hand_position_motor_line_S2_X1","Motor line #3 Manual absolute position"]
["OBJECT_ANALOG_VALUE:24","Hand_position_motor_line_S2_X2","Motor line #4 Manual absolute position"]
["OBJECT_ANALOG_VALUE:25","Hand_position_motor_line_S2_X3","Motor line #5 Manual absolute position"]
["OBJECT_ANALOG_VALUE:26","Hand_position_motor_line_S2_X4","Motor line #6 Manual absolute position"]
["OBJECT_ANALOG_VALUE:27","Hand_position_motor_line_S2_X5","Motor line #7 Manual absolute position"]
["OBJECT_ANALOG_VALUE:28","Hand_position_motor_line_S2_X6","Motor line #8 Manual absolute position"]
["OBJECT_ANALOG_VALUE:29","Hand_position_motor_line_S2_X7","Motor line #9 Manual absolute position"]
["OBJECT_ANALOG_VALUE:30","Hand_position_motor_line_S2_X8","Motor line #10 Manual absolute position"]
["OBJECT_ANALOG_VALUE:31","Hand_relative_position_motor_line_S1_X1","Motor line #1 Manual relative position"]
["OBJECT_ANALOG_VALUE:32","Hand_relative_position_motor_line_S1_X2","Motor line #2 Manual relative position"]
["OBJECT_ANALOG_VALUE:33","Hand_relative_position_motor_line_S2_X1","Motor line #3 Manual relative position"]
["OBJECT_ANALOG_VALUE:34","Hand_relative_position_motor_line_S2_X2","Motor line #4 Manual relative position"]
["OBJECT_ANALOG_VALUE:35","Hand_relative_position_motor_line_S2_X3","Motor line #5 Manual relative position"]
["OBJECT_ANALOG_VALUE:36","Hand_relative_position_motor_line_S2_X4","Motor line #6 Manual relative position"]
["OBJECT_ANALOG_VALUE:37","Hand_relative_position_motor_line_S2_X5","Motor line #7 Manual relative position"]
["OBJECT_ANALOG_VALUE:38","Hand_relative_position_motor_line_S2_X6","Motor line #8 Manual relative position"]
["OBJECT_ANALOG_VALUE:39","Hand_relative_position_motor_line_S2_X7","Motor line #9 Manual relative position"]
["OBJECT_ANALOG_VALUE:40","Hand_relative_position_motor_line_S2_X8","Motor line #10 Manual relative position"]
["OBJECT_ANALOG_VALUE:41","Wind_speed","Weather, Wind speed"]
["OBJECT_ANALOG_VALUE:42","Wind_speed_filtered","Weather, Filtered wind speed"]
["OBJECT_ANALOG_VALUE:43","Wind_direction","Weather, Wind direction"]
["OBJECT_ANALOG_VALUE:44","Wind_direction_filtered","Weather, Filtered wind direction"]
["OBJECT_ANALOG_VALUE:45","Building_mode_in","NV controller, Building mode"]
["OBJECT_ANALOG_VALUE:46","Wind_speed_NV_controller_1","NV controller #1 Wind speed, fast"]
["OBJECT_ANALOG_VALUE:47","Wind_speed_NV_controller_2","NV controller #2 Wind speed, fast"]
["OBJECT_ANALOG_VALUE:48","Wind_speed_NV_controller_3","NV controller #3 Wind speed, fast"]
["OBJECT_ANALOG_VALUE:49","Wind_speed_NV_controller_4","NV controller #4 Wind speed, fast"]
["OBJECT_ANALOG_VALUE:50","Wind_speed_NV_controller_5","NV controller #5 Wind speed, fast"]
["OBJECT_ANALOG_VALUE:51","Wind_speed_NV_controller_6","NV controller #6 Wind speed, fast"]
["OBJECT_ANALOG_VALUE:52","Wind_speed_NV_controller_7","NV controller #7 Wind speed, fast"]
["OBJECT_ANALOG_VALUE:53","Wind_speed_NV_controller_8","NV controller #8 Wind speed, fast"]
["OBJECT_ANALOG_VALUE:54","Wind_speed_NV_controller_9","NV controller #9 Wind speed, fast"]
["OBJECT_ANALOG_VALUE:55","Wind_speed_NV_controller_10","NV controller #10 Wind speed, fast"]
["OBJECT_ANALOG_VALUE:56","Wind_speed_filtered_NV_controller_1","NV controller #1 Wind speed, slow"]
["OBJECT_ANALOG_VALUE:57","Wind_speed_filtered_NV_controller_2","NV controller #2 Wind speed, slow"]
["OBJECT_ANALOG_VALUE:58","Wind_speed_filtered_NV_controller_3","NV controller #3 Wind speed, slow"]
["OBJECT_ANALOG_VALUE:59","Wind_speed_filtered_NV_controller_4","NV controller #4 Wind speed, slow"]
["OBJECT_ANALOG_VALUE:60","Wind_speed_filtered_NV_controller_5","NV controller #5 Wind speed, slow"]
["OBJECT_ANALOG_VALUE:61","Wind_speed_filtered_NV_controller_6","NV controller #6 Wind speed, slow"]
["OBJECT_ANALOG_VALUE:62","Wind_speed_filtered_NV_controller_7","NV controller #7 Wind speed, slow"]
["OBJECT_ANALOG_VALUE:63","Wind_speed_filtered_NV_controller_8","NV controller #8 Wind speed, slow"]
["OBJECT_ANALOG_VALUE:64","Wind_speed_filtered_NV_controller_9","NV controller #9 Wind speed, slow"]
["OBJECT_ANALOG_VALUE:65","Wind_speed_filtered_NV_controller_10","NV controller #10 Wind speed, slow"]
["OBJECT_ANALOG_VALUE:66","Temperature_NV_controller_1","NV controller #1 Temperature, BACnet"]
["OBJECT_ANALOG_VALUE:67","Temperature_NV_controller_2","NV controller #2 Temperature, BACnet"]
["OBJECT_ANALOG_VALUE:68","Temperature_NV_controller_3","NV controller #3 Temperature, BACnet"]
["OBJECT_ANALOG_VALUE:69","Temperature_NV_controller_4","NV controller #4 Temperature, BACnet"]
["OBJECT_ANALOG_VALUE:70","Temperature_NV_controller_5","NV controller #5 Temperature, BACnet"]
["OBJECT_ANALOG_VALUE:71","Temperature_NV_controller_6","NV controller #6 Temperature, BACnet"]
["OBJECT_ANALOG_VALUE:72","Temperature_NV_controller_7","NV controller #7 Temperature, BACnet"]
["OBJECT_ANALOG_VALUE:73","Temperature_NV_controller_8","NV controller #8 Temperature, BACnet"]
["OBJECT_ANALOG_VALUE:74","Temperature_NV_controller_9","NV controller #9 Temperature, BACnet"]
["OBJECT_ANALOG_VALUE:75","Temperature_NV_controller_10","NV controller #10 Temperature, BACnet"]
["OBJECT_ANALOG_VALUE:76","CO2_NV_controller_1","NV controller #1 CO2, BACnet"]
["OBJECT_ANALOG_VALUE:77","CO2_NV_controller_2","NV controller #2 CO2, BACnet"]
["OBJECT_ANALOG_VALUE:78","CO2_NV_controller_3","NV controller #3 CO2, BACnet"]
["OBJECT_ANALOG_VALUE:79","CO2_NV_controller_4","NV controller #4 CO2, BACnet"]
["OBJECT_ANALOG_VALUE:80","CO2_NV_controller_5","NV controller #5 CO2, BACnet"]
["OBJECT_ANALOG_VALUE:81","CO2_NV_controller_6","NV controller #6 CO2, BACnet"]
["OBJECT_ANALOG_VALUE:82","CO2_NV_controller_7","NV controller #7 CO2, BACnet"]
["OBJECT_ANALOG_VALUE:83","CO2_NV_controller_8","NV controller #8 CO2, BACnet"]
["OBJECT_ANALOG_VALUE:84","CO2_NV_controller_9","NV controller #9 CO2, BACnet"]
["OBJECT_ANALOG_VALUE:85","CO2_NV_controller_10","NV controller #10 CO2, BACnet"]
["OBJECT_ANALOG_VALUE:86","Relative_humidity_NV_controller_1","NV controller #1 Relative humidity, BACnet"]
["OBJECT_ANALOG_VALUE:87","Relative_humidity_NV_controller_2","NV controller #2 Relative humidity, BACnet"]
["OBJECT_ANALOG_VALUE:88","Relative_humidity_NV_controller_3","NV controller #3 Relative humidity, BACnet"]
["OBJECT_ANALOG_VALUE:89","Relative_humidity_NV_controller_4","NV controller #4 Relative humidity, BACnet"]
["OBJECT_ANALOG_VALUE:90","Relative_humidity_NV_controller_5","NV controller #5 Relative humidity, BACnet"]
["OBJECT_ANALOG_VALUE:91","Relative_humidity_NV_controller_6","NV controller #6 Relative humidity, BACnet"]
["OBJECT_ANALOG_VALUE:92","Relative_humidity_NV_controller_7","NV controller #7 Relative humidity, BACnet"]
["OBJECT_ANALOG_VALUE:93","Relative_humidity_NV_controller_8","NV controller #8 Relative humidity, BACnet"]
["OBJECT_ANALOG_VALUE:94","Relative_humidity_NV_controller_9","NV controller #9 Relative humidity, BACnet"]
["OBJECT_ANALOG_VALUE:95","Relative_humidity_NV_controller_10","NV controller #10 Relative humidity, BACnet"]
["OBJECT_ANALOG_VALUE:96","Outdoor_temperature_in_NV_controller_1","NV controller #1 BACnet outdoor temperature"]
["OBJECT_ANALOG_VALUE:97","Outdoor_temperature_in_NV_controller_2","NV controller #2 BACnet outdoor temperature"]
["OBJECT_ANALOG_VALUE:98","Outdoor_temperature_in_NV_controller_3","NV controller #3 BACnet outdoor temperature"]
["OBJECT_ANALOG_VALUE:99","Outdoor_temperature_in_NV_controller_4","NV controller #4 BACnet outdoor temperature"]
["OBJECT_ANALOG_VALUE:100","Outdoor_temperature_in_NV_controller_5","NV controller #5 BACnet outdoor temperature"]
["OBJECT_ANALOG_VALUE:101","Outdoor_temperature_in_NV_controller_6","NV controller #6 BACnet outdoor temperature"]
["OBJECT_ANALOG_VALUE:102","Outdoor_temperature_in_NV_controller_7","NV controller #7 BACnet outdoor temperature"]
["OBJECT_ANALOG_VALUE:103","Outdoor_temperature_in_NV_controller_8","NV controller #8 BACnet outdoor temperature"]
["OBJECT_ANALOG_VALUE:104","Outdoor_temperature_in_NV_controller_9","NV controller #9 BACnet outdoor temperature"]
["OBJECT_ANALOG_VALUE:105","Outdoor_temperature_in_NV_controller_10","NV controller #10 BACnet outdoor temperature"]
["OBJECT_ANALOG_VALUE:106","NV_base_temperature_setpoint_NV_controller_1","NV controller #1 Comfort temperature set point"]
["OBJECT_ANALOG_VALUE:107","NV_base_temperature_setpoint_NV_controller_2","NV controller #2 Comfort temperature set point"]
["OBJECT_ANALOG_VALUE:108","NV_base_temperature_setpoint_NV_controller_3","NV controller #3 Comfort temperature set point"]
["OBJECT_ANALOG_VALUE:109","NV_base_temperature_setpoint_NV_controller_4","NV controller #4 Comfort temperature set point"]
["OBJECT_ANALOG_VALUE:110","NV_base_temperature_setpoint_NV_controller_5","NV controller #5 Comfort temperature set point"]
["OBJECT_ANALOG_VALUE:111","NV_base_temperature_setpoint_NV_controller_6","NV controller #6 Comfort temperature set point"]
["OBJECT_ANALOG_VALUE:112","NV_base_temperature_setpoint_NV_controller_7","NV controller #7 Comfort temperature set point"]
["OBJECT_ANALOG_VALUE:113","NV_base_temperature_setpoint_NV_controller_8","NV controller #8 Comfort temperature set point"]
["OBJECT_ANALOG_VALUE:114","NV_base_temperature_setpoint_NV_controller_9","NV controller #9 Comfort temperature set point"]
["OBJECT_ANALOG_VALUE:115","NV_base_temperature_setpoint_NV_controller_10","NV controller #10 Comfort temperature set point"]
["OBJECT_ANALOG_VALUE:116","NV_heating_cooling_deadband_NV_controller_1","NV controller #1 Heating / cooling deadband input"]
["OBJECT_ANALOG_VALUE:117","NV_heating_cooling_deadband_NV_controller_2","NV controller #2 Heating / cooling deadband input"]
["OBJECT_ANALOG_VALUE:118","NV_heating_cooling_deadband_NV_controller_3","NV controller #3 Heating / cooling deadband input"]
["OBJECT_ANALOG_VALUE:119","NV_heating_cooling_deadband_NV_controller_4","NV controller #4 Heating / cooling deadband input"]
["OBJECT_ANALOG_VALUE:120","NV_heating_cooling_deadband_NV_controller_5","NV controller #5 Heating / cooling deadband input"]
["OBJECT_ANALOG_VALUE:121","NV_heating_cooling_deadband_NV_controller_6","NV controller #6 Heating / cooling deadband input"]
["OBJECT_ANALOG_VALUE:122","NV_heating_cooling_deadband_NV_controller_7","NV controller #7 Heating / cooling deadband input"]
["OBJECT_ANALOG_VALUE:123","NV_heating_cooling_deadband_NV_controller_8","NV controller #8 Heating / cooling deadband input"]
["OBJECT_ANALOG_VALUE:124","NV_heating_cooling_deadband_NV_controller_9","NV controller #9 Heating / cooling deadband input"]
["OBJECT_ANALOG_VALUE:125","NV_heating_cooling_deadband_NV_controller_10","NV controller #10 Heating / cooling deadband input"]
["OBJECT_ANALOG_VALUE:126","NV_heating_standby_offset_NV_controller_1","NV controller #1 Heating standby offset input"]
["OBJECT_ANALOG_VALUE:127","NV_heating_standby_offset_NV_controller_2","NV controller #2 Heating standby offset input"]
["OBJECT_ANALOG_VALUE:128","NV_heating_standby_offset_NV_controller_3","NV controller #3 Heating standby offset input"]
["OBJECT_ANALOG_VALUE:129","NV_heating_standby_offset_NV_controller_4","NV controller #4 Heating standby offset input"]
["OBJECT_ANALOG_VALUE:130","NV_heating_standby_offset_NV_controller_5","NV controller #5 Heating standby offset input"]
["OBJECT_ANALOG_VALUE:131","NV_heating_standby_offset_NV_controller_6","NV controller #6 Heating standby offset input"]
["OBJECT_ANALOG_VALUE:132","NV_heating_standby_offset_NV_controller_7","NV controller #7 Heating standby offset input"]
["OBJECT_ANALOG_VALUE:133","NV_heating_standby_offset_NV_controller_8","NV controller #8 Heating standby offset input"]
["OBJECT_ANALOG_VALUE:134","NV_heating_standby_offset_NV_controller_9","NV controller #9 Heating standby offset input"]
["OBJECT_ANALOG_VALUE:135","NV_heating_standby_offset_NV_controller_10","NV controller #10 Heating standby offset input"]
["OBJECT_ANALOG_VALUE:136","NV_heating_night_offset_NV_controller_1","NV controller #1 Heating night offset input"]
["OBJECT_ANALOG_VALUE:137","NV_heating_night_offset_NV_controller_2","NV controller #2 Heating night offset input"]
["OBJECT_ANALOG_VALUE:138","NV_heating_night_offset_NV_controller_3","NV controller #3 Heating night offset input"]
["OBJECT_ANALOG_VALUE:139","NV_heating_night_offset_NV_controller_4","NV controller #4 Heating night offset input"]
["OBJECT_ANALOG_VALUE:140","NV_heating_night_offset_NV_controller_5","NV controller #5 Heating night offset input"]
["OBJECT_ANALOG_VALUE:141","NV_heating_night_offset_NV_controller_6","NV controller #6 Heating night offset input"]
["OBJECT_ANALOG_VALUE:142","NV_heating_night_offset_NV_controller_7","NV controller #7 Heating night offset input"]
["OBJECT_ANALOG_VALUE:143","NV_heating_night_offset_NV_controller_8","NV controller #8 Heating night offset input"]
["OBJECT_ANALOG_VALUE:144","NV_heating_night_offset_NV_controller_9","NV controller #9 Heating night offset input"]
["OBJECT_ANALOG_VALUE:145","NV_heating_night_offset_NV_controller_10","NV controller #10 Heating night offset input"]
["OBJECT_ANALOG_VALUE:146","NV_cooling_standby_offset_NV_controller_1","NV controller #1 Cooling standby offset input"]
["OBJECT_ANALOG_VALUE:147","NV_cooling_standby_offset_NV_controller_2","NV controller #2 Cooling standby offset input"]
["OBJECT_ANALOG_VALUE:148","NV_cooling_standby_offset_NV_controller_3","NV controller #3 Cooling standby offset input"]
["OBJECT_ANALOG_VALUE:149","NV_cooling_standby_offset_NV_controller_4","NV controller #4 Cooling standby offset input"]
["OBJECT_ANALOG_VALUE:150","NV_cooling_standby_offset_NV_controller_5","NV controller #5 Cooling standby offset input"]
["OBJECT_ANALOG_VALUE:151","NV_cooling_standby_offset_NV_controller_6","NV controller #6 Cooling standby offset input"]
["OBJECT_ANALOG_VALUE:152","NV_cooling_standby_offset_NV_controller_7","NV controller #7 Cooling standby offset input"]
["OBJECT_ANALOG_VALUE:153","NV_cooling_standby_offset_NV_controller_8","NV controller #8 Cooling standby offset input"]
["OBJECT_ANALOG_VALUE:154","NV_cooling_standby_offset_NV_controller_9","NV controller #9 Cooling standby offset input"]
["OBJECT_ANALOG_VALUE:155","NV_cooling_standby_offset_NV_controller_10","NV controller #10 Cooling standby offset input"]
["OBJECT_ANALOG_VALUE:156","NV_cooling_night_offset_NV_controller_1","NV controller #1 Cooling night offset input"]
["OBJECT_ANALOG_VALUE:157","NV_cooling_night_offset_NV_controller_2","NV controller #2 Cooling night offset input"]
["OBJECT_ANALOG_VALUE:158","NV_cooling_night_offset_NV_controller_3","NV controller #3 Cooling night offset input"]
["OBJECT_ANALOG_VALUE:159","NV_cooling_night_offset_NV_controller_4","NV controller #4 Cooling night offset input"]
["OBJECT_ANALOG_VALUE:160","NV_cooling_night_offset_NV_controller_5","NV controller #5 Cooling night offset input"]
["OBJECT_ANALOG_VALUE:161","NV_cooling_night_offset_NV_controller_6","NV controller #6 Cooling night offset input"]
["OBJECT_ANALOG_VALUE:162","NV_cooling_night_offset_NV_controller_7","NV controller #7 Cooling night offset input"]
["OBJECT_ANALOG_VALUE:163","NV_cooling_night_offset_NV_controller_8","NV controller #8 Cooling night offset input"]
["OBJECT_ANALOG_VALUE:164","NV_cooling_night_offset_NV_controller_9","NV controller #9 Cooling night offset input"]
["OBJECT_ANALOG_VALUE:165","NV_cooling_night_offset_NV_controller_10","NV controller #10 Cooling night offset input"]
["OBJECT_ANALOG_VALUE:166","Mech_vent_temperature_setpoint_offset_1","Mech. vent. controller #1 BACnet, temp. setpoint offset"]
["OBJECT_ANALOG_VALUE:167","Mech_vent_temperature_setpoint_offset_2","Mech. vent. controller #2 BACnet, temp. setpoint offset"]
["OBJECT_ANALOG_VALUE:168","Mech_vent_temperature_setpoint_offset_3","Mech. vent. controller #3 BACnet, temp. setpoint offset"]
["OBJECT_ANALOG_VALUE:169","Mech_vent_temperature_setpoint_offset_4","Mech. vent. controller #4 BACnet, temp. setpoint offset"]
["OBJECT_ANALOG_VALUE:170","Mech_vent_temperature_setpoint_offset_5","Mech. vent. controller #5 BACnet, temp. setpoint offset"]
["OBJECT_ANALOG_VALUE:171","Mech_vent_temperature_setpoint_offset_6","Mech. vent. controller #6 BACnet, temp. setpoint offset"]
["OBJECT_ANALOG_VALUE:172","Mech_vent_temperature_setpoint_offset_7","Mech. vent. controller #7 BACnet, temp. setpoint offset"]
["OBJECT_ANALOG_VALUE:173","Mech_vent_temperature_setpoint_offset_8","Mech. vent. controller #8 BACnet, temp. setpoint offset"]
["OBJECT_ANALOG_VALUE:174","Mech_vent_temperature_setpoint_offset_9","Mech. vent. controller #9 BACnet, temp. setpoint offset"]
["OBJECT_ANALOG_VALUE:175","Mech_vent_temperature_setpoint_offset_10","Mech. vent. controller #10 BACnet, temp. setpoint offset"]
["OBJECT_ANALOG_VALUE:176","Hand_timout_motor_line_S1_X1","Motor line #1 Manual command - auto. off period"]
["OBJECT_ANALOG_VALUE:177","Hand_timout_motor_line_S1_X2","Motor line #2 Manual command - auto. off period"]
["OBJECT_ANALOG_VALUE:178","Hand_timout_motor_line_S2_X1","Motor line #3 Manual command - auto. off period"]
["OBJECT_ANALOG_VALUE:179","Hand_timout_motor_line_S2_X2","Motor line #4 Manual command - auto. off period"]
["OBJECT_ANALOG_VALUE:180","Hand_timout_motor_line_S2_X3","Motor line #5 Manual command - auto. off period"]
["OBJECT_ANALOG_VALUE:181","Hand_timout_motor_line_S2_X4","Motor line #6 Manual command - auto. off period"]
["OBJECT_ANALOG_VALUE:182","Hand_timout_motor_line_S2_X5","Motor line #7 Manual command - auto. off period"]
["OBJECT_ANALOG_VALUE:183","Hand_timout_motor_line_S2_X6","Motor line #8 Manual command - auto. off period"]
["OBJECT_ANALOG_VALUE:184","Hand_timout_motor_line_S2_X7","Motor line #9 Manual command - auto. off period"]
["OBJECT_ANALOG_VALUE:185","Hand_timout_motor_line_S2_X8","Motor line #10 Manual command - auto. off period"]
["OBJECT_ANALOG_VALUE:186","Actual_illumination_sunscreen_controller_1","Sun #1 Illumination"]
["OBJECT_ANALOG_VALUE:187","Actual_illumination_sunscreen_controller_2","Sun #2 Illumination"]
["OBJECT_ANALOG_VALUE:188","Actual_illumination_sunscreen_controller_3","Sun #3 Illumination"]
["OBJECT_ANALOG_VALUE:189","Actual_illumination_sunscreen_controller_4","Sun #4 Illumination"]
["OBJECT_ANALOG_VALUE:190","Actual_illumination_sunscreen_controller_5","Sun #5 Illumination"]
["OBJECT_ANALOG_VALUE:191","Actual_illumination_sunscreen_controller_6","Sun #6 Illumination"]
["OBJECT_ANALOG_VALUE:192","Actual_illumination_sunscreen_controller_7","Sun #7 Illumination"]
["OBJECT_ANALOG_VALUE:193","Actual_illumination_sunscreen_controller_8","Sun #8 Illumination"]
["OBJECT_ANALOG_VALUE:194","Actual_illumination_sunscreen_controller_9","Sun #9 Illumination"]
["OBJECT_ANALOG_VALUE:195","Actual_illumination_sunscreen_controller_10","Sun #10 Illumination"]
["OBJECT_BINARY_INPUT:1","Closed_motor_line_S1_X1","Motor line #1 Closed"]
["OBJECT_BINARY_INPUT:2","Closed_motor_line_S1_X2","Motor line #2 Closed"]
["OBJECT_BINARY_INPUT:3","Closed_motor_line_S2_X1","Motor line #3 Closed"]
["OBJECT_BINARY_INPUT:4","Closed_motor_line_S2_X2","Motor line #4 Closed"]
["OBJECT_BINARY_INPUT:5","Closed_motor_line_S2_X3","Motor line #5 Closed"]
["OBJECT_BINARY_INPUT:6","Closed_motor_line_S2_X4","Motor line #6 Closed"]
["OBJECT_BINARY_INPUT:7","Closed_motor_line_S2_X5","Motor line #7 Closed"]
["OBJECT_BINARY_INPUT:8","Closed_motor_line_S2_X6","Motor line #8 Closed"]
["OBJECT_BINARY_INPUT:9","Closed_motor_line_S2_X7","Motor line #9 Closed"]
["OBJECT_BINARY_INPUT:10","Closed_motor_line_S2_X8","Motor line #10 Closed"]
["OBJECT_BINARY_INPUT:11","Error_motor_line_S1_X1","Motor line #1 Error"]
["OBJECT_BINARY_INPUT:12","Error_motor_line_S1_X2","Motor line #2 Error"]
["OBJECT_BINARY_INPUT:13","Error_motor_line_S2_X1","Motor line #3 Error"]
["OBJECT_BINARY_INPUT:14","Error_motor_line_S2_X2","Motor line #4 Error"]
["OBJECT_BINARY_INPUT:15","Error_motor_line_S2_X3","Motor line #5 Error"]
["OBJECT_BINARY_INPUT:16","Error_motor_line_S2_X4","Motor line #6 Error"]
["OBJECT_BINARY_INPUT:17","Error_motor_line_S2_X5","Motor line #7 Error"]
["OBJECT_BINARY_INPUT:18","Error_motor_line_S2_X6","Motor line #8 Error"]
["OBJECT_BINARY_INPUT:19","Error_motor_line_S2_X7","Motor line #9 Error"]
["OBJECT_BINARY_INPUT:20","Error_motor_line_S2_X8","Motor line #10 Error"]
["OBJECT_BINARY_INPUT:21","Alarm_smoke_zone_1","Smoke zone #1 Alarm"]
["OBJECT_BINARY_INPUT:22","Alarm_smoke_zone_2","Smoke zone #2 Alarm"]
["OBJECT_BINARY_INPUT:23","Alarm_smoke_zone_3","Smoke zone #3 Alarm"]
["OBJECT_BINARY_INPUT:24","Alarm_smoke_zone_4","Smoke zone #4 Alarm"]
["OBJECT_BINARY_INPUT:25","Alarm_smoke_zone_5","Smoke zone #5 Alarm"]
["OBJECT_BINARY_INPUT:26","Alarm_smoke_zone_6","Smoke zone #6 Alarm"]
["OBJECT_BINARY_INPUT:27","Alarm_smoke_zone_7","Smoke zone #7 Alarm"]
["OBJECT_BINARY_INPUT:28","Alarm_smoke_zone_8","Smoke zone #8 Alarm"]
["OBJECT_BINARY_INPUT:29","Alarm_smoke_zone_9","Smoke zone #9 Alarm"]
["OBJECT_BINARY_INPUT:30","Alarm_smoke_zone_10","Smoke zone #10 Alarm"]
["OBJECT_BINARY_INPUT:31","Error_smoke_zone_1","Smoke zone #1 Error"]
["OBJECT_BINARY_INPUT:32","Error_smoke_zone_2","Smoke zone #2 Error"]
["OBJECT_BINARY_INPUT:33","Error_smoke_zone_3","Smoke zone #3 Error"]
["OBJECT_BINARY_INPUT:34","Error_smoke_zone_4","Smoke zone #4 Error"]
["OBJECT_BINARY_INPUT:35","Error_smoke_zone_5","Smoke zone #5 Error"]
["OBJECT_BINARY_INPUT:36","Error_smoke_zone_6","Smoke zone #6 Error"]
["OBJECT_BINARY_INPUT:37","Error_smoke_zone_7","Smoke zone #7 Error"]
["OBJECT_BINARY_INPUT:38","Error_smoke_zone_8","Smoke zone #8 Error"]
["OBJECT_BINARY_INPUT:39","Error_smoke_zone_9","Smoke zone #9 Error"]
["OBJECT_BINARY_INPUT:40","Error_smoke_zone_10","Smoke zone #10 Error"]
["OBJECT_BINARY_INPUT:41","Error_system","System, System error"]
["OBJECT_BINARY_INPUT:42","Error_nv_controllers","NV controller, Building error"]
["OBJECT_BINARY_INPUT:43","Common_mech_vent","NV controller, Building mech vent"]
["OBJECT_BINARY_INPUT:44","Common_heating","NV controller, Building heating demand"]
["OBJECT_BINARY_INPUT:45","NV_Occupancy_1","NV controller #1 Occupancy"]
["OBJECT_BINARY_INPUT:46","NV_Occupancy_2","NV controller #2 Occupancy"]
["OBJECT_BINARY_INPUT:47","NV_Occupancy_3","NV controller #3 Occupancy"]
["OBJECT_BINARY_INPUT:48","NV_Occupancy_4","NV controller #4 Occupancy"]
["OBJECT_BINARY_INPUT:49","NV_Occupancy_5","NV controller #5 Occupancy"]
["OBJECT_BINARY_INPUT:50","NV_Occupancy_6","NV controller #6 Occupancy"]
["OBJECT_BINARY_INPUT:51","NV_Occupancy_7","NV controller #7 Occupancy"]
["OBJECT_BINARY_INPUT:52","NV_Occupancy_8","NV controller #8 Occupancy"]
["OBJECT_BINARY_INPUT:53","NV_Occupancy_9","NV controller #9 Occupancy"]
["OBJECT_BINARY_INPUT:54","NV_Occupancy_10","NV controller #10 Occupancy"]
["OBJECT_BINARY_INPUT:55","NV_Winter_1","NV controller #1 Winter"]
["OBJECT_BINARY_INPUT:56","NV_Winter_2","NV controller #2 Winter"]
["OBJECT_BINARY_INPUT:57","NV_Winter_3","NV controller #3 Winter"]
["OBJECT_BINARY_INPUT:58","NV_Winter_4","NV controller #4 Winter"]
["OBJECT_BINARY_INPUT:59","NV_Winter_5","NV controller #5 Winter"]
["OBJECT_BINARY_INPUT:60","NV_Winter_6","NV controller #6 Winter"]
["OBJECT_BINARY_INPUT:61","NV_Winter_7","NV controller #7 Winter"]
["OBJECT_BINARY_INPUT:62","NV_Winter_8","NV controller #8 Winter"]
["OBJECT_BINARY_INPUT:63","NV_Winter_9","NV controller #9 Winter"]
["OBJECT_BINARY_INPUT:64","NV_Winter_10","NV controller #10 Winter"]
["OBJECT_BINARY_INPUT:65","NV_Lighting_1","NV controller #1 Ligthing output"]
["OBJECT_BINARY_INPUT:66","NV_Lighting_2","NV controller #2 Ligthing output"]
["OBJECT_BINARY_INPUT:67","NV_Lighting_3","NV controller #3 Ligthing output"]
["OBJECT_BINARY_INPUT:68","NV_Lighting_4","NV controller #4 Ligthing output"]
["OBJECT_BINARY_INPUT:69","NV_Lighting_5","NV controller #5 Ligthing output"]
["OBJECT_BINARY_INPUT:70","NV_Lighting_6","NV controller #6 Ligthing output"]
["OBJECT_BINARY_INPUT:71","NV_Lighting_7","NV controller #7 Ligthing output"]
["OBJECT_BINARY_INPUT:72","NV_Lighting_8","NV controller #8 Ligthing output"]
["OBJECT_BINARY_INPUT:73","NV_Lighting_9","NV controller #9 Ligthing output"]
["OBJECT_BINARY_INPUT:74","NV_Lighting_10","NV controller #10 Ligthing output"]
["OBJECT_BINARY_INPUT:75","NV_Error_status_1","NV controller #1 Error out"]
["OBJECT_BINARY_INPUT:76","NV_Error_status_2","NV controller #2 Error out"]
["OBJECT_BINARY_INPUT:77","NV_Error_status_3","NV controller #3 Error out"]
["OBJECT_BINARY_INPUT:78","NV_Error_status_4","NV controller #4 Error out"]
["OBJECT_BINARY_INPUT:79","NV_Error_status_5","NV controller #5 Error out"]
["OBJECT_BINARY_INPUT:80","NV_Error_status_6","NV controller #6 Error out"]
["OBJECT_BINARY_INPUT:81","NV_Error_status_7","NV controller #7 Error out"]
["OBJECT_BINARY_INPUT:82","NV_Error_status_8","NV controller #8 Error out"]
["OBJECT_BINARY_INPUT:83","NV_Error_status_9","NV controller #9 Error out"]
["OBJECT_BINARY_INPUT:84","NV_Error_status_10","NV controller #10 Error out"]
["OBJECT_BINARY_INPUT:85","Mech_vent_1","Mech. vent. controller #1 Mech. vent."]
["OBJECT_BINARY_INPUT:86","Mech_vent_2","Mech. vent. controller #2 Mech. vent."]
["OBJECT_BINARY_INPUT:87","Mech_vent_3","Mech. vent. controller #3 Mech. vent."]
["OBJECT_BINARY_INPUT:88","Mech_vent_4","Mech. vent. controller #4 Mech. vent."]
["OBJECT_BINARY_INPUT:89","Mech_vent_5","Mech. vent. controller #5 Mech. vent."]
["OBJECT_BINARY_INPUT:90","Mech_vent_6","Mech. vent. controller #6 Mech. vent."]
["OBJECT_BINARY_INPUT:91","Mech_vent_7","Mech. vent. controller #7 Mech. vent."]
["OBJECT_BINARY_INPUT:92","Mech_vent_8","Mech. vent. controller #8 Mech. vent."]
["OBJECT_BINARY_INPUT:93","Mech_vent_9","Mech. vent. controller #9 Mech. vent."]
["OBJECT_BINARY_INPUT:94","Mech_vent_10","Mech. vent. controller #10 Mech. vent."]
["OBJECT_BINARY_INPUT:95","Heating_1","Heating controller #1 Heating valve"]
["OBJECT_BINARY_INPUT:96","Heating_2","Heating controller #2 Heating valve"]
["OBJECT_BINARY_INPUT:97","Heating_3","Heating controller #3 Heating valve"]
["OBJECT_BINARY_INPUT:98","Heating_4","Heating controller #4 Heating valve"]
["OBJECT_BINARY_INPUT:99","Heating_5","Heating controller #5 Heating valve"]
["OBJECT_BINARY_INPUT:100","Heating_6","Heating controller #6 Heating valve"]
["OBJECT_BINARY_INPUT:101","Heating_7","Heating controller #7 Heating valve"]
["OBJECT_BINARY_INPUT:102","Heating_8","Heating controller #8 Heating valve"]
["OBJECT_BINARY_INPUT:103","Heating_9","Heating controller #9 Heating valve"]
["OBJECT_BINARY_INPUT:104","Heating_10","Heating controller #10 Heating valve"]
["OBJECT_BINARY_INPUT:105","Weather_raining","Weather, Rain"]
["OBJECT_BINARY_OUTPUT:1","Close_motor_line_S1_X1","Motor line #1 Close from BACnet"]
["OBJECT_BINARY_OUTPUT:2","Close_motor_line_S1_X2","Motor line #2 Close from BACnet"]
["OBJECT_BINARY_OUTPUT:3","Close_motor_line_S2_X1","Motor line #3 Close from BACnet"]
["OBJECT_BINARY_OUTPUT:4","Close_motor_line_S2_X2","Motor line #4 Close from BACnet"]
["OBJECT_BINARY_OUTPUT:5","Close_motor_line_S2_X3","Motor line #5 Close from BACnet"]
["OBJECT_BINARY_OUTPUT:6","Close_motor_line_S2_X4","Motor line #6 Close from BACnet"]
["OBJECT_BINARY_OUTPUT:7","Close_motor_line_S2_X5","Motor line #7 Close from BACnet"]
["OBJECT_BINARY_OUTPUT:8","Close_motor_line_S2_X6","Motor line #8 Close from BACnet"]
["OBJECT_BINARY_OUTPUT:9","Close_motor_line_S2_X7","Motor line #9 Close from BACnet"]
["OBJECT_BINARY_OUTPUT:10","Close_motor_line_S2_X8","Motor line #10 Close from BACnet"]
["OBJECT_BINARY_OUTPUT:11","NV_Presence_detection_1","NV controller #1 Presence detection"]
["OBJECT_BINARY_OUTPUT:12","NV_Presence_detection_2","NV controller #2 Presence detection"]
["OBJECT_BINARY_OUTPUT:13","NV_Presence_detection_3","NV controller #3 Presence detection"]
["OBJECT_BINARY_OUTPUT:14","NV_Presence_detection_4","NV controller #4 Presence detection"]
["OBJECT_BINARY_OUTPUT:15","NV_Presence_detection_5","NV controller #5 Presence detection"]
["OBJECT_BINARY_OUTPUT:16","NV_Presence_detection_6","NV controller #6 Presence detection"]
["OBJECT_BINARY_OUTPUT:17","NV_Presence_detection_7","NV controller #7 Presence detection"]
["OBJECT_BINARY_OUTPUT:18","NV_Presence_detection_8","NV controller #8 Presence detection"]
["OBJECT_BINARY_OUTPUT:19","NV_Presence_detection_9","NV controller #9 Presence detection"]
["OBJECT_BINARY_OUTPUT:20","NV_Presence_detection_10","NV controller #10 Presence detection"]
["OBJECT_BINARY_OUTPUT:21","NV_Disable_automatic_1","NV controller #1 Disable automatic, BACnet"]
["OBJECT_BINARY_OUTPUT:22","NV_Disable_automatic_2","NV controller #2 Disable automatic, BACnet"]
["OBJECT_BINARY_OUTPUT:23","NV_Disable_automatic_3","NV controller #3 Disable automatic, BACnet"]
["OBJECT_BINARY_OUTPUT:24","NV_Disable_automatic_4","NV controller #4 Disable automatic, BACnet"]
["OBJECT_BINARY_OUTPUT:25","NV_Disable_automatic_5","NV controller #5 Disable automatic, BACnet"]
["OBJECT_BINARY_OUTPUT:26","NV_Disable_automatic_6","NV controller #6 Disable automatic, BACnet"]
["OBJECT_BINARY_OUTPUT:27","NV_Disable_automatic_7","NV controller #7 Disable automatic, BACnet"]
["OBJECT_BINARY_OUTPUT:28","NV_Disable_automatic_8","NV controller #8 Disable automatic, BACnet"]
["OBJECT_BINARY_OUTPUT:29","NV_Disable_automatic_9","NV controller #9 Disable automatic, BACnet"]
["OBJECT_BINARY_OUTPUT:30","NV_Disable_automatic_10","NV controller #10 Disable automatic, BACnet"]
["OBJECT_BINARY_OUTPUT:31","NV_Force_winter_1","NV controller #1 Force winter, BACnet"]
["OBJECT_BINARY_OUTPUT:32","NV_Force_winter_2","NV controller #2 Force winter, BACnet"]
["OBJECT_BINARY_OUTPUT:33","NV_Force_winter_3","NV controller #3 Force winter, BACnet"]
["OBJECT_BINARY_OUTPUT:34","NV_Force_winter_4","NV controller #4 Force winter, BACnet"]
["OBJECT_BINARY_OUTPUT:35","NV_Force_winter_5","NV controller #5 Force winter, BACnet"]
["OBJECT_BINARY_OUTPUT:36","NV_Force_winter_6","NV controller #6 Force winter, BACnet"]
["OBJECT_BINARY_OUTPUT:37","NV_Force_winter_7","NV controller #7 Force winter, BACnet"]
["OBJECT_BINARY_OUTPUT:38","NV_Force_winter_8","NV controller #8 Force winter, BACnet"]
["OBJECT_BINARY_OUTPUT:39","NV_Force_winter_9","NV controller #9 Force winter, BACnet"]
["OBJECT_BINARY_OUTPUT:40","NV_Force_winter_10","NV controller #10 Force winter, BACnet"]
["OBJECT_BINARY_OUTPUT:41","NV_Ventilate_1","NV controller #1 Ventilate"]
["OBJECT_BINARY_OUTPUT:42","NV_Ventilate_2","NV controller #2 Ventilate"]
["OBJECT_BINARY_OUTPUT:43","NV_Ventilate_3","NV controller #3 Ventilate"]
["OBJECT_BINARY_OUTPUT:44","NV_Ventilate_4","NV controller #4 Ventilate"]
["OBJECT_BINARY_OUTPUT:45","NV_Ventilate_5","NV controller #5 Ventilate"]
["OBJECT_BINARY_OUTPUT:46","NV_Ventilate_6","NV controller #6 Ventilate"]
["OBJECT_BINARY_OUTPUT:47","NV_Ventilate_7","NV controller #7 Ventilate"]
["OBJECT_BINARY_OUTPUT:48","NV_Ventilate_8","NV controller #8 Ventilate"]
["OBJECT_BINARY_OUTPUT:49","NV_Ventilate_9","NV controller #9 Ventilate"]
["OBJECT_BINARY_OUTPUT:50","NV_Ventilate_10","NV controller #10 Ventilate"]
["OBJECT_BINARY_OUTPUT:51","NV_Comfort_1","NV controller #1 Comfort, BACnet"]
["OBJECT_BINARY_OUTPUT:52","NV_Comfort_2","NV controller #2 Comfort, BACnet"]
["OBJECT_BINARY_OUTPUT:53","NV_Comfort_3","NV controller #3 Comfort, BACnet"]
["OBJECT_BINARY_OUTPUT:54","NV_Comfort_4","NV controller #4 Comfort, BACnet"]
["OBJECT_BINARY_OUTPUT:55","NV_Comfort_5","NV controller #5 Comfort, BACnet"]
["OBJECT_BINARY_OUTPUT:56","NV_Comfort_6","NV controller #6 Comfort, BACnet"]
["OBJECT_BINARY_OUTPUT:57","NV_Comfort_7","NV controller #7 Comfort, BACnet"]
["OBJECT_BINARY_OUTPUT:58","NV_Comfort_8","NV controller #8 Comfort, BACnet"]
["OBJECT_BINARY_OUTPUT:59","NV_Comfort_9","NV controller #9 Comfort, BACnet"]
["OBJECT_BINARY_OUTPUT:60","NV_Comfort_10","NV controller #10 Comfort, BACnet"]
["OBJECT_BINARY_OUTPUT:61","NV_Night_1","NV controller #1 Night, BACnet"]
["OBJECT_BINARY_OUTPUT:62","NV_Night_2","NV controller #2 Night, BACnet"]
["OBJECT_BINARY_OUTPUT:63","NV_Night_3","NV controller #3 Night, BACnet"]
["OBJECT_BINARY_OUTPUT:64","NV_Night_4","NV controller #4 Night, BACnet"]
["OBJECT_BINARY_OUTPUT:65","NV_Night_5","NV controller #5 Night, BACnet"]
["OBJECT_BINARY_OUTPUT:66","NV_Night_6","NV controller #6 Night, BACnet"]
["OBJECT_BINARY_OUTPUT:67","NV_Night_7","NV controller #7 Night, BACnet"]
["OBJECT_BINARY_OUTPUT:68","NV_Night_8","NV controller #8 Night, BACnet"]
["OBJECT_BINARY_OUTPUT:69","NV_Night_9","NV controller #9 Night, BACnet"]
["OBJECT_BINARY_OUTPUT:70","NV_Night_10","NV controller #10 Night, BACnet"]
["OBJECT_BINARY_OUTPUT:71","Mech_vent_override_1","Mech. vent. controller #1 Mech. vent. override, BACnet"]
["OBJECT_BINARY_OUTPUT:72","Mech_vent_override_2","Mech. vent. controller #2 Mech. vent. override, BACnet"]
["OBJECT_BINARY_OUTPUT:73","Mech_vent_override_3","Mech. vent. controller #3 Mech. vent. override, BACnet"]
["OBJECT_BINARY_OUTPUT:74","Mech_vent_override_4","Mech. vent. controller #4 Mech. vent. override, BACnet"]
["OBJECT_BINARY_OUTPUT:75","Mech_vent_override_5","Mech. vent. controller #5 Mech. vent. override, BACnet"]
["OBJECT_BINARY_OUTPUT:76","Mech_vent_override_6","Mech. vent. controller #6 Mech. vent. override, BACnet"]
["OBJECT_BINARY_OUTPUT:77","Mech_vent_override_7","Mech. vent. controller #7 Mech. vent. override, BACnet"]
["OBJECT_BINARY_OUTPUT:78","Mech_vent_override_8","Mech. vent. controller #8 Mech. vent. override, BACnet"]
["OBJECT_BINARY_OUTPUT:79","Mech_vent_override_9","Mech. vent. controller #9 Mech. vent. override, BACnet"]
["OBJECT_BINARY_OUTPUT:80","Mech_vent_override_10","Mech. vent. controller #10 Mech. vent. override, BACnet"]
["OBJECT_BINARY_OUTPUT:81","Heating_override_1","Heating controller #1 Heating override, BACnet"]
["OBJECT_BINARY_OUTPUT:82","Heating_override_2","Heating controller #2 Heating override, BACnet"]
["OBJECT_BINARY_OUTPUT:83","Heating_override_3","Heating controller #3 Heating override, BACnet"]
["OBJECT_BINARY_OUTPUT:84","Heating_override_4","Heating controller #4 Heating override, BACnet"]
["OBJECT_BINARY_OUTPUT:85","Heating_override_5","Heating controller #5 Heating override, BACnet"]
["OBJECT_BINARY_OUTPUT:86","Heating_override_6","Heating controller #6 Heating override, BACnet"]
["OBJECT_BINARY_OUTPUT:87","Heating_override_7","Heating controller #7 Heating override, BACnet"]
["OBJECT_BINARY_OUTPUT:88","Heating_override_8","Heating controller #8 Heating override, BACnet"]
["OBJECT_BINARY_OUTPUT:89","Heating_override_9","Heating controller #9 Heating override, BACnet"]
["OBJECT_BINARY_OUTPUT:90","Heating_override_10","Heating controller #10 Heating override, BACnet"]
["OBJECT_BINARY_VALUE:1","Connection_1","BACnet #1 Value"]
["OBJECT_BINARY_VALUE:2","Connection_2","BACnet #2 Value"]
["OBJECT_BINARY_VALUE:3","Connection_3","BACnet #3 Value"]
["OBJECT_BINARY_VALUE:4","Connection_4","BACnet #4 Value"]
["OBJECT_BINARY_VALUE:5","Connection_5","BACnet #5 Value"]
["OBJECT_BINARY_VALUE:6","Connection_6","BACnet #6 Value"]
["OBJECT_BINARY_VALUE:7","Connection_7","BACnet #7 Value"]
["OBJECT_BINARY_VALUE:8","Connection_8","BACnet #8 Value"]
["OBJECT_BINARY_VALUE:9","Connection_9","BACnet #9 Value"]
["OBJECT_BINARY_VALUE:10","Connection_10","BACnet #10 Value"]
["OBJECT_DEVICE:33","Device_33","WxC 3xx panel for smoke and heat extraction and natural ventilation"]
["OBJECT_BITSTRING_VALUE:1","Status_motor_group_1","Motor group #1 Field bus status"]
["OBJECT_BITSTRING_VALUE:2","Status_motor_group_2","Motor group #2 Field bus status"]
["OBJECT_BITSTRING_VALUE:3","Status_motor_group_3","Motor group #3 Field bus status"]
["OBJECT_BITSTRING_VALUE:4","Status_motor_group_4","Motor group #4 Field bus status"]
["OBJECT_BITSTRING_VALUE:5","Status_motor_group_5","Motor group #5 Field bus status"]
["OBJECT_BITSTRING_VALUE:6","Status_motor_group_6","Motor group #6 Field bus status"]
["OBJECT_BITSTRING_VALUE:7","Status_motor_group_7","Motor group #7 Field bus status"]
["OBJECT_BITSTRING_VALUE:8","Status_motor_group_8","Motor group #8 Field bus status"]
["OBJECT_BITSTRING_VALUE:9","Status_motor_group_9","Motor group #9 Field bus status"]
["OBJECT_BITSTRING_VALUE:10","Status_motor_group_10","Motor group #10 Field bus status"]
["OBJECT_BITSTRING_VALUE:11","Status_motor_line_S1_X1","Motor line #1 Status"]
["OBJECT_BITSTRING_VALUE:12","Status_motor_line_S1_X2","Motor line #2 Status"]
["OBJECT_BITSTRING_VALUE:13","Status_motor_line_S2_X1","Motor line #3 Status"]
["OBJECT_BITSTRING_VALUE:14","Status_motor_line_S2_X2","Motor line #4 Status"]
["OBJECT_BITSTRING_VALUE:15","Status_motor_line_S2_X3","Motor line #5 Status"]
["OBJECT_BITSTRING_VALUE:16","Status_motor_line_S2_X4","Motor line #6 Status"]
["OBJECT_BITSTRING_VALUE:17","Status_motor_line_S2_X5","Motor line #7 Status"]
["OBJECT_BITSTRING_VALUE:18","Status_motor_line_S2_X6","Motor line #8 Status"]
["OBJECT_BITSTRING_VALUE:19","Status_motor_line_S2_X7","Motor line #9 Status"]
["OBJECT_BITSTRING_VALUE:20","Status_motor_line_S2_X8","Motor line #10 Status"]
["OBJECT_BITSTRING_VALUE:21","Status_smoke_zone_1","Smoke zone #1 Status"]
["OBJECT_BITSTRING_VALUE:22","Status_smoke_zone_2","Smoke zone #2 Status"]
["OBJECT_BITSTRING_VALUE:23","Status_smoke_zone_3","Smoke zone #3 Status"]
["OBJECT_BITSTRING_VALUE:24","Status_smoke_zone_4","Smoke zone #4 Status"]
["OBJECT_BITSTRING_VALUE:25","Status_smoke_zone_5","Smoke zone #5 Status"]
["OBJECT_BITSTRING_VALUE:26","Status_smoke_zone_6","Smoke zone #6 Status"]
["OBJECT_BITSTRING_VALUE:27","Status_smoke_zone_7","Smoke zone #7 Status"]
["OBJECT_BITSTRING_VALUE:28","Status_smoke_zone_8","Smoke zone #8 Status"]
["OBJECT_BITSTRING_VALUE:29","Status_smoke_zone_9","Smoke zone #9 Status"]
["OBJECT_BITSTRING_VALUE:30","Status_smoke_zone_10","Smoke zone #10 Status"]
["OBJECT_BITSTRING_VALUE:31","Status_system","System, System status"]
["OBJECT_NETWORK_PORT:1","Network_port"]
["OBJECT_NETWORK_PORT:2","Network_port"]

{"sheet":"DefaultBnObjects","index":6,"n_rows":11,"n_cols":8,"rows_kept":11,"cut":false,"hidden":true,"merged":[]}
["Motor line","Motor group","NV controller","Sensors_out","Sensors_in","Weather_NVC","Weather_WOW600","Building"]
["Actual_position_motor_line_","Max_position_motor_group_","Actual_temperature_setpoint_NV_controller_","Temperature_in_NV_controller_","Temperature_NV_controller_","Wind_speed_filtered_NV_controller_","Wind_speed_filtered","Building_mode_out"]
["Actual_max_position_motor_line_","Auto_position_motor_group_","NV_Ventilation_status_","CO2_in_NV_controller_","CO2_NV_controller_","Outdoor_temperature_in_NV_controller_","Wind_direction_filtered","Building_mode_in"]
["Max_position_motor_line_","Hand_relative_position_motor_group_","NV_base_temperature_setpoint_NV_controller_","Relative_humidity_in_NV_controller_","Relative_humidity_NV_controller_","Wind_direction_filtered","Weather_temperature","Error_system"]
["Auto_position_motor_line_",null,"NV_Error_status_",null,null,"Connection_1","Weather_raining","Error_nv_controllers"]
["Hand_relative_position_motor_line_",null,null,null,null,"Weather_raining"]
["Hand_timout_motor_line_"]
["Closed_motor_line_"]
["Error_motor_line_"]
["Close_motor_line_"]
["Status_motor_line_"]